Workbook

Sheet Plan Mantencion 2019
L1: PLAN DE MANTENCIÓN 2019
C2: 5493 | D2: 5541 | E2: 5582 | F2: 5627 | G2: 5672 | H2: 5719 | I2: 5757 | J2: 5805 | K2: 5834 | L2: 5871 | M2: 5907 | N2: 5952 | O2: 5981 | P2: 6017 | Q2: 6061 | R2: 6099 | S2: 6137 | T2: 6177 | U2: 6221 | V2: 6260 | W2: 6304 | X2: 6338 | Y2: 6374 | Z2: 6413 | AA2: 6455 | AB2: 6488 | AC2: 6516 | AD2: 6562 | AE2: 6604 | AF2: 6646 | AG2: 6691 | AH2: 6741 | AI2: 6782 | AJ2: 6830 | AK2: 6868 | AL2: 6907 | AM2: 100
C3: AÑO 2019
C4: ENERO | G4: FEBRERO | K4: MARZO | P4: ABRIL | T4: MAYO | X4: JUNIO | AC4: JULIO | AG4: AGOSTO | AK4: SEPTIEMBRE | AP4: OCTUBRE | AT4: NOVIEMBRE | AX4: DICIEMBRE
B5: Semana | C5: S1 | D5: S2 | E5: S3 | F5: S4 | G5: S5 | H5: S6 | I5: S7 | J5: S8 | K5: S9 | L5: S10 | M5: S11 | N5: S12 | O5: S13 | P5: S14 | Q5: S15 | R5: S16 | S5: S17 | T5: S18 | U5: S19 | V5: S20 | W5: S21 | X5: S22 | Y5: S23 | Z5: S24 | AA5: S25 | AB5: S26 | AC5: S27 | AD5: S28 | AE5: S29 | AF5: S30 | AG5: S31 | AH5: S32 | AI5: S33 | AJ5: S34 | AK5: S35 | AL5: S36 | AM5: S37 | AN5: S38 | AO5: S39 | AP5: S40 | AQ5: S41 | AR5: S42 | AS5: S43 | AT5: S44 | AU5: S45 | AV5: S46 | AW5: S47 | AX5: S48 | AY5: S49 | AZ5: S50 | BA5: S51 | BB5: S52
A6: TAREAS PROGRAMADAS | B6: FRECUENCIA | C6: 31 al 06 | D6: 07 al 13 | E6: 14 al 20 | F6: 21 al 27 | G6: 28 al 03 | H6: 04 al 10 | I6: 11 al 17 | J6: 18 al 24 | K6: 25 al 03 | L6: 04 al 10 | M6: 11 al 17 | N6: 18 al 24 | O6: 25 al 31 | P6: 01 al 07 | Q6: 08 al 14 | R6: 15 al 21 | S6: 22 al 28 | T6: 29 al 05 | U6: 06 al 12 | V6: 13 al 19 | W6: 20 al 26 | X6: 27 al 02 | Y6: 03 al 09 | Z6: 10 al 16 | AA6: 17 al 23 | AB6: 24 al 30 | AC6: 01 al 07 | AD6: 08 al 14 | AE6: 15 al 21 | AF6: 22 al 28 | AG6: 29 al 04 | AH6: 05 al 11 | AI6: 12 al 18 | AJ6: 19 al 25 | AK6: 26 al 01 | AL6: 02 al 08 | AM6: 09 al 15 | AN6: 16 al 22 | AO6: 23 al 29 | AP6: 30 al 06 | AQ6: 07 al 13 | AR6: 14 al 20 | AS6: 21 al 27 | AT6: 28 al 03 | AU6: 04 al 10 | AV6: 11 al 17 | AW6: 18 al 24 | AX6: 25 al 01 | AY6: 02 al 08 | AZ6: 09 al 15 | BA6: 16 al 22 | BB6: 23 al 29
A7: Tarea 1 | B7: Mensual | F7: 5627 | J7: 5805 | O7: 5981 | S7: 6137 | W7: 6304 | AB7: 6488 | AF7: 6646 | AJ7: 6830
A8: Tarea 2 | B8: Mensual | F8: =F7+1 -> 5628 | J8: =J7+1 -> 5806 | O8: =O7+1 -> 5982 | S8: =S7+1 -> 6138 | W8: =W7+1 -> 6305 | AB8: =AB7+1 -> 6489 | AF8: =AF7+1 -> 6647 | AJ8: =AJ7+1 -> 6831
A9: Tarea 3 | B9: Mensual | C9: 5493 | G9: 5672 | K9: =5834 -> 5834 | P9: 6017 | T9: 6178 | X9: 6338 | AC9: 6516 | AG9: 6691 | AK9: 6868
A10: Tarea 4 | B10: Mensual | D10: 5541 | H10: 5719 | L10: 5872 | Q10: 6061 | U10: 6221 | Y10: 6374 | AD10: 6562 | AH10: 6741
A11: Tarea 5 | B11: Mensual | E11: 5582 | I11: 5757 | M11: 5907 | R11: 6099 | V11: 6260 | Z11: 6413 | AE11: 6604 | AI11: 6782 | AM11: 100
A12: Tarea 6 | B12: Mensual | F12: =F8+1 -> 5629 | J12: =J8+1 -> 5807 | N12: 5952 | S12: =S8+1 -> 6139 | W12: =W8+1 -> 6306 | AA12: 6455 | AF12: =AF8+1 -> 6648 | AJ12: =AJ8+1 -> 6832
A13: Tarea 7 | B13: Mensual | C13: =C9+1 -> 5494 | G13: =G9+1 -> 5673 | K13: =K9+1 -> 5835 | P13: =P9+1 -> 6018 | T13: =T9+1 -> 6179 | X13: 6339 | AC13: =AC9+1 -> 6517 | AG13: =AG9+1 -> 6692 | AK13: =AK9+1 -> 6869
A14: Tarea 8 | B14: Mensual | D14: =D10+1 -> 5542 | H14: =H10+1 -> 5720 | L14: =L10+1 -> 5873 | Q14: =Q10+1 -> 6062 | U14: =U10+1 -> 6222 | Y14: =Y10+1 -> 6375 | AD14: =AD10+1 -> 6563 | AH14: =AH10+1 -> 6742
A15: Tarea 9 | B15: Mensual | E15: =E11+1 -> 5583 | I15: =I11+1 -> 5758 | M15: =M11+1 -> 5908 | R15: =R11+1 -> 6100 | V15: =V11+1 -> 6261 | Z15: =Z11+1 -> 6414 | AE15: =AE11+1 -> 6605 | AI15: =AI11+1 -> 6783 | AM15: 101
A16: Tarea 10 | B16: Mensual | C16: =C13+1 -> 5495 | G16: =G13+1 -> 5674 | K16: =K13+1 -> 5836 | P16: =P13+1 -> 6019 | T16: =T13+1 -> 6180 | X16: 6340 | AC16: =AC13+1 -> 6518 | AG16: =AG13+1 -> 6693 | AK16: =AK13+1 -> 6870
A17: Tarea 11 | B17: Mensual | D17: =D14+1 -> 5543 | H17: =H14+1 -> 5721 | L17: =L14+1 -> 5874 | Q17: =Q14+1 -> 6063 | U17: =U14+1 -> 6223 | Y17: =Y14+1 -> 6376 | AD17: =AD14+1 -> 6564 | AH17: =AH14+1 -> 6743
A18: Tarea 12 | B18: Mensual | E18: =E15+1 -> 5584 | I18: =I15+1 -> 5759 | M18: =M15+1 -> 5909 | R18: =R15+1 -> 6101 | V18: =V15+1 -> 6262 | Z18: =Z15+1 -> 6415 | AE18: =AE15+1 -> 6606 | AI18: =AI15+1 -> 6784 | AM18: 102
A19: Tarea 13 | B19: Mensual | C19: =C16+1 -> 5496 | G19: =G16+1 -> 5675 | K19: =K16+1 -> 5837 | P19: =P16+1 -> 6020 | T19: =T16+1 -> 6181 | X19: 6341 | AC19: =AC16+1 -> 6519 | AG19: =AG16+1 -> 6694 | AK19: =AK16+1 -> 6871
A20: Tarea 14 | B20: Trimestral | O20: =O8+1 -> 5983 | AB20: =AB8+1 -> 6490
A21: Tarea 15 | B21: Trimestral | O21: =O20+1 -> 5984 | AB21: =AB20+1 -> 6491
A24: Tarea 16 | B24: Bimensual | I24: =I18+1 -> 5760 | R24: =R18+1 -> 6102 | AA24: =AA12+1 -> 6456 | AI24: =AI18+1 -> 6785
A25: Tarea 17 | B25: Bimensual | J25: =J12+1 -> 5808 | S25: =S12+1 -> 6140 | AB25: =AB21+1 -> 6492 | AJ25: =AJ12+1 -> 6833
A26: Tarea 18 | B26: Bimensual | C26: =C19+1 -> 5497 | K26: =K19+1 -> 5838 | T26: =T19+1 -> 6182 | AC26: =AC19+1 -> 6520 | AK26: =AK19+1 -> 6872
A27: Tarea 19 | B27: Bimensual | D27: =D17+1 -> 5544 | L27: =L17+1 -> 5875 | U27: =U17+1 -> 6224 | AD27: =AD17+1 -> 6565
A28: Tarea 20 | B28: Bimensual | E28: =E18+1 -> 5585 | M28: =M18+1 -> 5910 | V28: =V18+1 -> 6263 | AE28: =AE18+1 -> 6607
A29: Tarea 21 | B29: Bimensual | F29: =F12+1 -> 5630 | N29: =N12+1 -> 5953 | W29: =W12+1 -> 6307 | AF29: =AF12+1 -> 6649
A30: Tarea 22 | B30: Bimensual | G30: =G19+1 -> 5676 | O30: =O21+1 -> 5985 | X30: 6342 | AG30: =AG19+1 -> 6695
A31: Tarea 23 | B31: Bimensual | H31: =H17+1 -> 5722 | P31: =P19+1 -> 6021 | Y31: =Y17+1 -> 6377 | AH31: =AH17+1 -> 6744
A32: Tarea 24 | B32: Bimensual | I32: =I24+1 -> 5761 | Q32: =Q17+1 -> 6064 | Z32: =Z18+1 -> 6416 | AI32: =AI24+1 -> 6786
A35: Tarea 25 | B35: Trimestral | D35: =D27+1 -> 5545 | Q35: =Q32+1 -> 6065 | AD35: =AD27+1 -> 6566
A36: Tarea 26 | B36: Trimestral | E36: =E28+1 -> 5586 | R36: =R24+1 -> 6103 | AE36: =AE28+1 -> 6608
A37: Tarea 27 | B37: Trimestral | F37: =F29+1 -> 5631 | S37: =S25+1 -> 6141 | AF37: =AF29+1 -> 6650
A38: Tarea 28 | B38: Trimestral | G38: =G30+1 -> 5677 | T38: =T26+1 -> 6183 | AG38: =AG30+1 -> 6696
A39: Tarea 29 | B39: Trimestral | H39: =H31+1 -> 5723 | U39: =U27+1 -> 6225 | AH39: =AH31+1 -> 6745
A40: Tarea 30 | B40: Trimestral | I40: =I32+1 -> 5762 | V40: =V28+1 -> 6264 | AI40: =AI32+1 -> 6787
A41: Tarea 31 | B41: Trimestral | J41: =J25+1 -> 5809 | W41: =W29+1 -> 6308 | AJ41: =AJ25+1 -> 6834
A42: Tarea 32 | B42: Trimestral | K42: =K26+1 -> 5839 | X42: 6343 | AK42: =AK26+1 -> 6873
A43: Tarea 33 | B43: Trimestral
A44: Tarea 34 | B44: Trimestral | L44: =L27+1 -> 5876 | Y44: =Y31+1 -> 6378
A47: Tarea 35 | B47: Trimestral | O47: =O30+1 -> 5986 | AB47: =AB25+1 -> 6493
A48: Tarea 36 | B48: Trimestral | C48: =C26+1 -> 5498 | P48: =P31+1 -> 6022 | AC48: =AC26+1 -> 6521
A49: Tarea 37 | B49: Trimestral | D49: =D35+1 -> 5546 | Q49: =Q35+1 -> 6066 | AD49: =AD35+1 -> 6567
A50: Tarea 38 | B50: Trimestral | E50: =E36+1 -> 5587 | R50: =R36+1 -> 6104 | AE50: =AE36+1 -> 6609
A51: Tarea 39 | B51: Trimestral | F51: =F37+1 -> 5632 | S51: =S37+1 -> 6142 | AF51: =AF37+1 -> 6651
A52: Tarea 40 | B52: Trimestral | G52: =G38+1 -> 5678 | T52: =T38+1 -> 6184 | AG52: =AG38+1 -> 6697
A53: Tarea 41 | B53: Trimestral | H53: =H39+1 -> 5724 | U53: =U39+1 -> 6226 | AH53: =AH39+1 -> 6746
A54: Tarea 42 | B54: Trimestral | I54: =I40+1 -> 5763 | V54: =V40+1 -> 6265 | AI54: =AI40+1 -> 6788
A55: Tarea 43 | B55: Trimestral | J55: =J41+1 -> 5810 | W55: =W41+1 -> 6309 | AJ55: =AJ41+1 -> 6835
A56: Tarea 44 | B56: Trimestral | K56: =K42+1 -> 5840 | X56: 6344 | AK56: =AK42+1 -> 6874
A57: Tarea 45 | B57: Trimestral | L57: =L44+1 -> 5877 | Y57: =Y44+1 -> 6379
A58: Tarea 46 | B58: Trimestral | L58: =L57+1 -> 5878 | Y58: =Y57+1 -> 6380
A59: Tarea 47 | B59: Trimestral | M59: =M28+1 -> 5911 | Z59: =Z32+1 -> 6417
A60: Tarea 48 | B60: Trimestral | N60: =N29+1 -> 5954 | AA60: =AA24+1 -> 6457

Sheet Turnos 2018 (hidden)
C2: 2018-01-01
C3: L | D3: M | E3: M | F3: J | G3: V | H3: S | I3: D | J3: L | K3: M | L3: M | M3: J | N3: V | O3: S | P3: D | Q3: L | R3: M | S3: M | T3: J | U3: V | V3: S | W3: D | X3: L | Y3: M | Z3: M | AA3: J | AB3: V | AC3: S | AD3: D | AE3: L | AF3: M | AG3: M
B4: Turno | C4: 1 | D4: 2 | E4: 3 | F4: 4 | G4: 5 | H4: 6 | I4: 7 | J4: 8 | K4: 9 | L4: 10 | M4: 11 | N4: 12 | O4: 13 | P4: 14 | Q4: 15 | R4: 16 | S4: 17 | T4: 18 | U4: 19 | V4: 20 | W4: 21 | X4: 22 | Y4: 23 | Z4: 24 | AA4: 25 | AB4: 26 | AC4: 27 | AD4: 28 | AE4: 29 | AF4: 30 | AG4: 31
A5: Leonel Castillo | B5: A | C5: L1 | D5: 1 | E5: D | F5: D | G5: 3 | H5: 3 | I5: 3 | J5: 3 | K5: 3 | L5: 3 | M5: D | N5: D | O5: 2 | P5: 2 | Q5: 2 | R5: 2 | S5: 2 | T5: 2 | U5: D | V5: D | W5: 1 | X5: 1 | Y5: 1 | Z5: 1 | AA5: L1 | AB5: L1 | AC5: D | AD5: D | AE5: L2 | AF5: L2 | AG5: 3
A6: Ivan Escobar | B6: A | C6: L2 | D6: 2 | E6: D | F6: D | G6: 3 | H6: 3 | I6: 3 | J6: 3 | K6: 3 | L6: 3 | M6: D | N6: D | O6: 2 | P6: 2 | Q6: 2 | R6: 2 | S6: 2 | T6: 2 | U6: D | V6: D | W6: 1 | X6: 1 | Y6: L1 | Z6: L1 | AA6: L1 | AB6: L1 | AC6: D | AD6: D | AE6: L2 | AF6: L2 | AG6: 3
A7: Valeria Cabello | B7: A | C7: D | D7: dia | E7: dia | F7: dia | G7: dia | H7: D | I7: D | J7: 3 | K7: 3 | L7: 3 | M7: D | N7: D | O7: 2 | P7: 2 | Q7: 2 | R7: 2 | S7: 2 | T7: 2 | U7: D | V7: D | W7: 1 | X7: 1 | Y7: 1 | Z7: 1 | AA7: L1 | AB7: L1 | AC7: D | AD7: D | AE7: L2 | AF7: L2 | AG7: 3
A8: Rodrigo Chavez | B8: B | C8: V | D8: V | E8: V | F8: V | G8: V | H8: V | I8: V | J8: V | K8: D | L8: D | M8: 3 | N8: 3 | O8: 3 | P8: 3 | Q8: 3 | R8: 3 | S8: D | T8: D | U8: 2 | V8: 2 | W8: 2 | X8: 2 | Y8: 2 | Z8: 2 | AA8: D | AB8: D | AC8: L1 | AD8: L1 | AE8: L1 | AF8: L1 | AG8: 1
A9: Aldo Castillo | B9: B | C9: V | D9: V | E9: V | F9: V | G9: V | H9: V | I9: V | J9: V | K9: D | L9: D | M9: 3 | N9: 3 | O9: 3 | P9: 3 | Q9: 3 | R9: 3 | S9: D | T9: D | U9: 2 | V9: 2 | W9: 2 | X9: 2 | Y9: 2 | Z9: 2 | AA9: D | AB9: D | AC9: L1 | AD9: L1 | AE9: L1 | AF9: L1 | AG9: 1
A10: Samuel Sandoval | B10: D-B | C10: L2 | D10: 3 | E10: 3 | F10: 3 | G10: D | H10: D | I10: 2 | J10: 2 | K10: 2 | L10: 2 | M10: 2 | N10: 2 | O10: D | P10: D | Q10: 1 | R10: 1 | S10: 1 | T10: 1 | U10: 1 | V10: V | W10: D | X10: D | Y10: V | Z10: V | AA10: D | AB10: D | AC10: L1 | AD10: L1 | AE10: L1 | AF10: L1 | AG10: 1
A11: Roberto Romero | B11: C | C11: L1 | D11: 2 | E11: L1 | F11: 2 | G11: 2 | H11: 2 | I11: D | J11: D | K11: 1 | L11: 1 | M11: V | N11: V | O11: V | P11: V | Q11: V | R11: V | S11: V | T11: V | U11: V | V11: V | W11: V | X11: V | Y11: V | Z11: V | AA11: V | AB11: V | AC11: V | AD11: V | AE11: V | AF11: V | AG11: V
A12: Miguel Muñoz | B12: C | C12: L1 | D12: 2 | E12: 2 | F12: 2 | G12: 2 | H12: 2 | I12: D | J12: D | K12: 1 | L12: 1 | M12: V | N12: V | O12: V | P12: V | Q12: V | R12: V | S12: V | T12: V | U12: V | V12: V | W12: V | X12: V | Y12: V | Z12: V | AA12: V | AB12: V | AC12: V | AD12: V | AE12: V | AF12: V | AG12: V
A13: Ricardo Epul | B13: C | AA13: dia | AB13: dia | AC13: D | AD13: D | AE13: dia | AF13: dia | AG13: dia
A14: Julio Muñoz | B14: D | F14: 1 | G14: 1 | H14: 1 | I14: 1 | J14: 1 | K14: D | L14: D | M14: 1 | N14: 1 | O14: 1 | P14: 1 | Q14: D | R14: D | S14: 3 | T14: 3 | U14: 3 | V14: 3 | W14: 3 | X14: 3 | Y14: D | Z14: D | AA14: L2 | AB14: L2 | AC14: L2 | AD14: L2 | AE14: D | AF14: D | AG14: 2
A15: Omar Soto | B15: D | C15: L2 | D15: 3 | E15: L2 | F15: 3 | G15: D | H15: D | I15: 2 | J15: 2 | K15: 2 | L15: 2 | M15: 2 | N15: 2 | O15: D | P15: D | Q15: 1 | R15: 1 | S15: 1 | T15: 1 | U15: 1 | V15: 1 | W15: D | X15: D | Y15: 3 | Z15: 3 | AA15: L2 | AB15: L2 | AC15: L2 | AD15: L2 | AE15: D | AF15: D | AG15: 2
A16: Jorge Aguirre | B16: D | C16: D | D16: D | E16: 1 | F16: 1 | G16: 1 | H16: 1 | I16: 1 | J16: 1 | K16: D | L16: D | M16: 1 | N16: 1 | O16: 1 | P16: 1 | Q16: D | R16: D | S16: 3 | T16: 3 | U16: 3 | V16: 3 | W16: 3 | X16: 3 | Y16: D | Z16: D | AA16: L2 | AB16: L2 | AC16: L2 | AD16: L2 | AE16: D | AF16: D | AG16: 2
C18: 2018-02-01
C19: J | D19: V | E19: S | F19: D | G19: L | H19: M | I19: M | J19: J | K19: V | L19: S | M19: D | N19: L | O19: M | P19: M | Q19: J | R19: V | S19: S | T19: D | U19: L | V19: M | W19: M | X19: J | Y19: V | Z19: S | AA19: D | AB19: L | AC19: M | AD19: M
B20: Turno | C20: 1 | D20: 2 | E20: 3 | F20: 4 | G20: 5 | H20: 6 | I20: 7 | J20: 8 | K20: 9 | L20: 10 | M20: 11 | N20: 12 | O20: 13 | P20: 14 | Q20: 15 | R20: 16 | S20: 17 | T20: 18 | U20: 19 | V20: 20 | W20: 21 | X20: 22 | Y20: 23 | Z20: 24 | AA20: 25 | AB20: 26 | AC20: 27 | AD20: 28
A21: Leonel Castillo | B21: A | C21: 3 | D21: L2 | E21: L2 | F21: D | G21: D | H21: 2 | I21: 2 | J21: L1 | K21: L1 | L21: L1 | M21: L1 | N21: D | O21: D | P21: 1 | Q21: 1 | R21: L1 | S21: L1 | T21: L1 | U21: L1 | V21: D | W21: D | X21: V | Y21: V | Z21: V | AA21: V | AB21: V | AC21: V | AD21: V
A22: Ivan Escobar | B22: A | C22: 3 | D22: L2 | E22: L2 | F22: D | G22: D | H22: 2 | I22: 2 | J22: L1 | K22: L1 | L22: L1 | M22: L1 | N22: D | O22: D | P22: 1 | Q22: 1 | R22: L1 | S22: L1 | T22: L1 | U22: L1 | V22: D | W22: D | X22: V | Y22: V | Z22: V | AA22: V | AB22: V | AC22: V | AD22: V
A23: Valeria Cabello | B23: A | C23: 3 | D23: L2 | E23: L2 | F23: D | G23: D | H23: 2 | I23: 2 | J23: L1 | K23: L1 | L23: L1 | M23: L1 | N23: D | O23: D | P23: V | Q23: V | R23: V | S23: V | T23: V | U23: V | V23: V | W23: V | X23: V | Y23: V | Z23: V | AA23: V | AB23: V | AC23: V | AD23: V
A24: Rodrigo Chavez | B24: B | C24: 1 | D24: D | E24: D | F24: L2 | G24: L2 | H24: 3 | I24: 3 | J24: L2 | K24: L2 | L24: D | M24: D | N24: L1 | O24: L1 | P24: 2 | Q24: 2 | R24: L2 | S24: L2 | T24: D | U24: D | V24: L1 | W24: L1 | X24: L1 | Y24: L1 | Z24: L1 | AA24: L1 | AB24: D | AC24: D | AD24: 3
A25: Aldo Castillo | B25: B-C | C25: 1 | D25: D | E25: D | F25: L2 | G25: L2 | H25: 3 | I25: 3 | J25: L2 | K25: L2 | L25: D | M25: D | N25: L1 | O25: L1 | P25: 2 | Q25: 2 | R25: L2 | S25: L2 | T25: D | U25: D | V25: L1 | W25: L1 | X25: L1 | Y25: L1 | Z25: D | AA25: D | AB25: L1 | AC25: L1 | AD25: 1
A26: Samuel Sandoval | B26: B-C | C26: V | D26: V | E26: V | F26: V | G26: V | H26: V | I26: V | J26: V | K26: V | L26: V | M26: V | N26: V | O26: V | P26: V | Q26: V | R26: V | S26: V | T26: V | U26: V | V26: V | W26: V | X26: L2 | Y26: L2 | Z26: D | AA26: D | AB26: L1 | AC26: L1 | AD26: 1
A27: Roberto Romero | B27: C | C27: D | D27: L1 | E27: L1 | F27: L1 | G27: L1 | H27: 1 | I27: 1 | J27: D | K27: D | L27: L2 | M27: L2 | N27: L2 | O27: L2 | P27: 3 | Q27: 3 | R27: D | S27: D | T27: L2 | U27: L2 | V27: L2 | W27: L2 | X27: L2 | Y27: L2 | Z27: D | AA27: D | AB27: L1 | AC27: L1 | AD27: 1
A28: Miguel Muñoz | B28: C-D | C28: D | D28: L1 | E28: L1 | F28: L1 | G28: L1 | H28: 1 | I28: 1 | J28: D | K28: D | L28: L2 | M28: L2 | N28: L2 | O28: L2 | P28: 3 | Q28: 3 | R28: D | S28: D | T28: L2 | U28: L2 | V28: L2 | W28: L2 | X28: D | Y28: D | Z28: L2 | AA28: L2 | AB28: L2 | AC28: L2 | AD28: 2
A29: Ricardo Epul | B29: C | C29: D | D29: L1 | E29: L1 | F29: L1 | G29: L1 | H29: 1 | I29: 1 | J29: D | K29: D | L29: L2 | M29: L2 | N29: L2 | O29: L2 | P29: 3 | Q29: 3 | R29: D | S29: D | T29: L2 | U29: L2 | V29: L2 | W29: L2 | X29: L2 | Y29: L2 | Z29: D | AA29: D | AB29: D | AC29: D | AD29: 3
A30: Julio Muñoz | B30: D | C30: 2 | D30: V | E30: V | F30: V | G30: V | H30: V | I30: V | J30: V | K30: V | L30: V | M30: V | N30: V | O30: V | P30: V | Q30: V | R30: V | S30: V | T30: V | U30: V | V30: V | W30: V | X30: V | Y30: D | Z30: L2 | AA30: L2 | AB30: L2 | AC30: L2 | AD30: 2
A31: Omar Soto | B31: D-B | C31: 2 | D31: V | E31: V | F31: V | G31: V | H31: V | I31: V | J31: V | K31: V | L31: V | M31: V | N31: V | O31: V | P31: V | Q31: V | R31: V | S31: V | T31: V | U31: V | V31: V | W31: V | X31: V | Y31: D | Z31: L1 | AA31: L1 | AB31: D | AC31: D | AD31: 3
A32: Jorge Aguirre | B32: D-B-D | C32: 2 | D32: D | E32: D | F32: L2 | G32: L2 | H32: 3 | I32: 3 | J32: L2 | K32: L2 | L32: D | M32: D | N32: L1 | O32: L1 | P32: 2 | Q32: 2 | R32: L2 | S32: L2 | T32: D | U32: D | V32: dia | W32: dia | X32: D | Y32: D | Z32: L2 | AA32: L2 | AB32: L2 | AC32: L2 | AD32: 2
C34: 2018-03-01
C35: J | D35: V | E35: S | F35: D | G35: L | H35: M | I35: M | J35: J | K35: V | L35: S | M35: D | N35: L | O35: M | P35: M | Q35: J | R35: V | S35: S | T35: D | U35: L | V35: M | W35: M | X35: J | Y35: V | Z35: S | AA35: D | AB35: L | AC35: M | AD35: M | AE35: J | AF35: V | AG35: S
B36: Turno | C36: 1 | D36: 2 | E36: 3 | F36: 4 | G36: 5 | H36: 6 | I36: 7 | J36: 8 | K36: 9 | L36: 10 | M36: 11 | N36: 12 | O36: 13 | P36: 14 | Q36: 15 | R36: 16 | S36: 17 | T36: 18 | U36: 19 | V36: 20 | W36: 21 | X36: 22 | Y36: 23 | Z36: 24 | AA36: 25 | AB36: 26 | AC36: 27 | AD36: 28 | AE36: 29 | AF36: 30 | AG36: 31
A37: Leonel Castillo | B37: A | C37: V | D37: V | E37: V | F37: V | G37: V | H37: V | I37: V | J37: V | K37: V | L37: V | M37: V | N37: V | O37: V | P37: V | Q37: 1 | R37: D | S37: D | T37: 3 | U37: 3 | V37: 3 | W37: 3 | X37: 3 | Y37: 3 | Z37: D | AA37: D | AB37: 2 | AC37: 2 | AD37: 2 | AE37: 2 | AF37: 2 | AG37: 2
A38: Ivan Escobar | B38: A | C38: V | D38: V | E38: V | F38: V | G38: V | H38: V | I38: V | J38: V | K38: V | L38: V | M38: V | N38: V | O38: V | P38: V | Q38: 1 | R38: D | S38: D | T38: 3 | U38: 3 | V38: 3 | W38: 3 | X38: 3 | Y38: 3 | Z38: D | AA38: D | AB38: 2 | AC38: 2 | AD38: 2 | AE38: 2 | AF38: 2 | AG38: 2
A39: Valeria Cabello | B39: A | C39: V | D39: V | E39: V | F39: V | G39: V | H39: V | I39: dia | J39: dia | K39: dia | L39: D | M39: D | N39: dia | O39: dia | P39: dia | Q39: dia | R39: D | S39: D | T39: 3 | U39: 3 | V39: 3 | W39: 3 | X39: 3 | Y39: 3 | Z39: D | AA39: D | AB39: 2 | AC39: 2 | AD39: 2 | AE39: 2 | AF39: 2 | AG39: 2
A40: Rodrigo Chavez | B40: B | C40: 3 | D40: L2 | E40: L2 | F40: L2 | G40: L2 | H40: D | I40: D | J40: 2 | K40: 2 | L40: L1 | M40: L1 | N40: L1 | O40: L1 | P40: D | Q40: D | R40: 1 | S40: 1 | T40: 1 | U40: 1 | V40: 1 | W40: 1 | X40: D | Y40: D | Z40: 3 | AA40: 3 | AB40: 3 | AC40: 3 | AD40: 3 | AE40: 3 | AF40: D | AG40: D
A41: Omar Soto | B41: B | C41: 3 | D41: L2 | E41: L2 | F41: L2 | G41: L2 | H41: D | I41: D | J41: 2 | K41: 2 | L41: L1 | M41: L1 | N41: L1 | O41: L1 | P41: D | Q41: D | R41: 1 | S41: 1 | T41: 1 | U41: 1 | V41: 1 | W41: 1 | X41: D | Y41: D | Z41: 3 | AA41: 3 | AB41: 3 | AC41: 3 | AD41: 3 | AE41: 3 | AF41: D | AG41: D
A42: Ricardo Epul | B42: B | C42: 3 | D42: L2 | E42: L2 | F42: L2 | G42: L2 | H42: D | I42: D | J42: 2 | K42: 2 | L42: L1 | M42: L1 | N42: L1 | O42: L1 | P42: D | Q42: D | R42: 1 | S42: 1 | T42: 1 | U42: 1 | V42: 1 | W42: 1 | X42: D | Y42: D | Z42: 3 | AA42: 3 | AB42: 3 | AC42: 3 | AD42: 3 | AE42: 3 | AF42: D | AG42: D
A43: Roberto Romero | B43: C | C43: 1 | D43: L1 | E43: L1 | F43: D | G43: D | H43: L2 | I43: L2 | J43: 3 | K43: 3 | L43: L2 | M43: L2 | N43: D | O43: D | P43: L1 | Q43: 2 | R43: 2 | S43: 2 | T43: 2 | U43: 2 | V43: D | W43: D | X43: 1 | Y43: 1 | Z43: 1 | AA43: 1 | AB43: 1 | AC43: 1 | AD43: D | AE43: D | AF43: 3 | AG43: 3
A44: Aldo Castillo | B44: C | C44: 1 | D44: L1 | E44: L1 | F44: D | G44: D | H44: L2 | I44: L2 | J44: 3 | K44: 3 | L44: L2 | M44: L2 | N44: D | O44: D | P44: L1 | Q44: 2 | R44: 2 | S44: 2 | T44: 2 | U44: 2 | V44: D | W44: D | X44: 1 | Y44: 1 | Z44: 1 | AA44: 1 | AB44: 1 | AC44: 1 | AD44: D | AE44: D | AF44: 3 | AG44: 3
A45: Samuel Sandoval | B45: C | C45: 1 | D45: L1 | E45: L1 | F45: D | G45: D | H45: L2 | I45: L2 | J45: 3 | K45: 3 | L45: L2 | M45: L2 | N45: D | O45: D | P45: L1 | Q45: 2 | R45: 2 | S45: 2 | T45: 2 | U45: 2 | V45: D | W45: D | X45: 1 | Y45: 1 | Z45: 1 | AA45: 1 | AB45: 1 | AC45: 1 | AD45: D | AE45: D | AF45: 3 | AG45: 3
A46: Julio Muñoz | B46: D | C46: 2 | D46: D | E46: D | F46: L1 | G46: L1 | H46: L1 | I46: L1 | J46: 1 | K46: 1 | L46: D | M46: D | N46: L2 | O46: L2 | P46: L2 | Q46: 3 | R46: 3 | S46: 3 | T46: D | U46: D | V46: 2 | W46: 2 | X46: 2 | Y46: 2 | Z46: 2 | AA46: 2 | AB46: D | AC46: D | AD46: 1 | AE46: 1 | AF46: 1 | AG46: 1
A47: Miguel Muñoz | B47: D | C47: 2 | D47: D | E47: D | F47: L1 | G47: L1 | H47: L1 | I47: L1 | J47: 1 | K47: 1 | L47: D | M47: D | N47: L2 | O47: L2 | P47: L2 | Q47: 3 | R47: 3 | S47: 3 | T47: D | U47: D | V47: 2 | W47: 2 | X47: 2 | Y47: 2 | Z47: 2 | AA47: 2 | AB47: D | AC47: D | AD47: 1 | AE47: 1 | AF47: 1 | AG47: 1
A48: Jorge Aguirre | B48: D | C48: 2 | D48: D | E48: D | F48: L1 | G48: L1 | H48: L1 | I48: L1 | J48: 1 | K48: 1 | L48: D | M48: D | N48: L2 | O48: L2 | P48: L2 | Q48: 3 | R48: 3 | S48: 3 | T48: D | U48: D | V48: 2 | W48: 2 | X48: 2 | Y48: 2 | Z48: 2 | AA48: 2 | AB48: D | AC48: D | AD48: 1 | AE48: 1 | AF48: 1 | AG48: 1
C50: 2018-04-01
C51: D | D51: L | E51: M | F51: M | G51: J | H51: V | I51: S | J51: D | K51: L | L51: M | M51: M | N51: J | O51: V | P51: S | Q51: D | R51: L | S51: M | T51: M | U51: J | V51: V | W51: S | X51: D | Y51: L | Z51: M | AA51: M | AB51: J | AC51: V | AD51: S | AE51: D | AF51: L
B52: Turno | C52: 1 | D52: 2 | E52: 3 | F52: 4 | G52: 5 | H52: 6 | I52: 7 | J52: 8 | K52: 9 | L52: 10 | M52: 11 | N52: 12 | O52: 13 | P52: 14 | Q52: 15 | R52: 16 | S52: 17 | T52: 18 | U52: 19 | V52: 20 | W52: 21 | X52: 22 | Y52: 23 | Z52: 24 | AA52: 25 | AB52: 26 | AC52: 27 | AD52: 28 | AE52: 29 | AF52: 30
A53: Leonel Castillo | B53: A | C53: D | D53: D | E53: 1 | F53: 1 | G53: 1 | H53: 1 | I53: 1 | J53: 1 | K53: D | L53: D | M53: 3 | N53: L | O53: L | P53: 3 | Q53: 3 | R53: 3 | S53: D | T53: D | U53: 2 | V53: 2 | W53: 2 | X53: 2 | Y53: 2 | Z53: 2 | AA53: D | AB53: D | AC53: 1 | AD53: 2 | AE53: 1 | AF53: 1
A54: Ivan Escobar | B54: A | C54: D | D54: D | E54: 1 | F54: 1 | G54: 1 | H54: 1 | I54: 1 | J54: 1 | K54: D | L54: D | M54: 3 | N54: 3 | O54: 3 | P54: 3 | Q54: 3 | R54: 3 | S54: D | T54: D | U54: 2 | V54: 2 | W54: 2 | X54: 2 | Y54: 2 | Z54: 2 | AA54: D | AB54: D | AC54: 1 | AD54: 1 | AE54: 1 | AF54: 1
A55: Valeria Cabello | B55: A | C55: D | D55: D | E55: 1 | F55: 1 | G55: 1 | H55: 1 | I55: 1 | J55: 1 | K55: D | L55: D | M55: 3 | N55: 3 | O55: 3 | P55: 3 | Q55: 3 | R55: 3 | S55: D | T55: D | U55: 2 | V55: 2 | W55: 2 | X55: 2 | Y55: 2 | Z55: 2 | AA55: D | AB55: D | AC55: 1 | AD55: 1 | AE55: 1 | AF55: 1
A56: Rodrigo Chavez | B56: B | C56: 2 | D56: 2 | E56: 2 | F56: 2 | G56: 2 | H56: 2 | I56: D | J56: D | K56: 1 | L56: 1 | M56: 1 | N56: L1 | O56: L1 | P56: 1 | Q56: D | R56: D | S56: 3 | T56: 3 | U56: 3 | V56: 3 | W56: 3 | X56: 3 | Y56: D | Z56: D | AA56: 2 | AB56: 2 | AC56: 2 | AD56: 1 | AE56: 2 | AF56: 2
A57: Omar Soto | B57: B | C57: 2 | D57: 2 | E57: 2 | F57: 2 | G57: 2 | H57: 2 | I57: D | J57: D | K57: 1 | L57: 1 | M57: 1 | N57: 1 | O57: 1 | P57: 1 | Q57: D | R57: D | S57: 3 | T57: 3 | U57: 3 | V57: 3 | W57: 3 | X57: 3 | Y57: D | Z57: D | AA57: 2 | AB57: 2 | AC57: 2 | AD57: 2 | AE57: 2 | AF57: 2
A58: Ricardo Epul | B58: B | C58: 2 | D58: 2 | E58: 2 | F58: 2 | G58: 2 | H58: 2 | I58: D | J58: D | K58: 1 | L58: 1 | M58: 1 | N58: 1 | O58: 1 | P58: 1 | Q58: D | R58: D | S58: 3 | T58: 3 | U58: 3 | V58: 3 | W58: 3 | X58: 3 | Y58: D | Z58: D | AA58: 2 | AB58: 2 | AC58: 2 | AD58: 2 | AE58: 2 | AF58: 2
A59: Roberto Romero | B59: C | C59: 3 | D59: 3 | E59: 3 | F59: 3 | G59: D | H59: D | I59: 2 | J59: 2 | K59: 2 | L59: 2 | M59: 2 | N59: L2 | O59: D | P59: D | Q59: 1 | R59: 1 | S59: 1 | T59: 1 | U59: 1 | V59: 1 | W59: D | X59: D | Y59: 3 | Z59: 3 | AA59: 3 | AB59: 3 | AC59: 3 | AD59: 3 | AE59: D | AF59: D
A60: Aldo Castillo | B60: C | C60: 3 | D60: 3 | E60: 3 | F60: 3 | G60: D | H60: D | I60: 2 | J60: 2 | K60: 2 | L60: 2 | M60: 2 | N60: 2 | O60: D | P60: D | Q60: 1 | R60: 1 | S60: 1 | T60: 1 | U60: 1 | V60: 1 | W60: D | X60: D | Y60: 3 | Z60: 3 | AA60: 3 | AB60: 3 | AC60: 3 | AD60: 3 | AE60: D | AF60: D
A61: Samuel Sandoval | B61: C | C61: 3 | D61: 3 | E61: 3 | F61: 3 | G61: D | H61: D | I61: 2 | J61: 2 | K61: 2 | L61: 2 | M61: 2 | N61: 2 | O61: D | P61: D | Q61: 1 | R61: 1 | S61: 1 | T61: 1 | U61: 1 | V61: 1 | W61: D | X61: D | Y61: 3 | Z61: 3 | AA61: 3 | AB61: 3 | AC61: 3 | AD61: 3 | AE61: D | AF61: D
A62: Julio Muñoz | B62: D | C62: 1 | D62: 1 | E62: D | F62: D | G62: 3 | H62: 3 | I62: 3 | J62: 3 | K62: 3 | L62: 3 | M62: D | N62: D | O62: L2 | P62: 2 | Q62: 2 | R62: 2 | S62: 2 | T62: 2 | U62: D | V62: D | W62: 1 | X62: 1 | Y62: 1 | Z62: 1 | AA62: 1 | AB62: 1 | AC62: D | AD62: D | AE62: 3 | AF62: 3
A63: Miguel Muñoz | B63: D | C63: 1 | D63: 1 | E63: D | F63: D | G63: 3 | H63: 3 | I63: 3 | J63: 3 | K63: 3 | L63: 3 | M63: D | N63: D | O63: 2 | P63: 2 | Q63: 2 | R63: 2 | S63: 2 | T63: 2 | U63: D | V63: D | W63: 1 | X63: 1 | Y63: 1 | Z63: 1 | AA63: 1 | AB63: 1 | AC63: D | AD63: D | AE63: 3 | AF63: 3
A64: Jorge Aguirre | B64: D | C64: 1 | D64: 1 | E64: D | F64: D | G64: 3 | H64: 3 | I64: 3 | J64: 3 | K64: 3 | L64: 3 | M64: D | N64: D | O64: 2 | P64: 2 | Q64: 2 | R64: 2 | S64: 2 | T64: 2 | U64: D | V64: D | W64: 1 | X64: 1 | Y64: 1 | Z64: 1 | AA64: 1 | AB64: 1 | AC64: D | AD64: D | AE64: 3 | AF64: 3
C66: 2018-05-01
C67: M | D67: M | E67: J | F67: V | G67: S | H67: D | I67: L | J67: M | K67: M | L67: J | M67: V | N67: S | O67: D | P67: L | Q67: M | R67: M | S67: J | T67: V | U67: S | V67: D | W67: L | X67: M | Y67: M | Z67: J | AA67: V | AB67: S | AC67: D | AD67: L | AE67: M | AF67: M | AG67: J
B68: Turno | C68: 1 | D68: 2 | E68: 3 | F68: 4 | G68: 5 | H68: 6 | I68: 7 | J68: 8 | K68: 9 | L68: 10 | M68: 11 | N68: 12 | O68: 13 | P68: 14 | Q68: 15 | R68: 16 | S68: 17 | T68: 18 | U68: 19 | V68: 20 | W68: 21 | X68: 22 | Y68: 23 | Z68: 24 | AA68: 25 | AB68: 26 | AC68: 27 | AD68: 28 | AE68: 29 | AF68: 30 | AG68: 31
A69: Leonel Castillo | B69: A | C69: 1 | D69: 1 | E69: D | F69: D | G69: 3 | H69: 3 | I69: 3 | J69: 3 | K69: 3 | L69: 3 | M69: D | N69: D | O69: 2 | P69: 2 | Q69: 2 | R69: 2 | S69: 2 | T69: 2 | U69: D | V69: D | W69: 1 | X69: 1 | Y69: 1 | Z69: 1 | AA69: 1 | AB69: 1 | AC69: D | AD69: D | AE69: 3 | AF69: 3 | AG69: 3
A70: Ivan Escobar | B70: A | C70: 1 | D70: 1 | E70: D | F70: D | G70: 3 | H70: 3 | I70: 3 | J70: 3 | K70: 3 | L70: 3 | M70: D | N70: D | O70: 2 | P70: 2 | Q70: 2 | R70: 2 | S70: 2 | T70: 2 | U70: D | V70: D | W70: 1 | X70: 1 | Y70: 1 | Z70: 1 | AA70: 1 | AB70: 1 | AC70: D | AD70: D | AE70: 3 | AF70: 3 | AG70: 3
A71: Valeria Cabello | B71: A | C71: 1 | D71: 1 | E71: D | F71: D | G71: 3 | H71: 3 | I71: 3 | J71: 3 | K71: 3 | L71: 3 | M71: D | N71: D | O71: 2 | P71: 2 | Q71: 2 | R71: 2 | S71: 2 | T71: 2 | U71: D | V71: D | W71: 1 | X71: 1 | Y71: 1 | Z71: 1 | AA71: 1 | AB71: 1 | AC71: D | AD71: D | AE71: 3 | AF71: 3 | AG71: 3
A72: Rodrigo Chavez | B72: B | C72: D | D72: D | E72: 1 | F72: 1 | G72: 1 | H72: 1 | I72: 1 | J72: 1 | K72: D | L72: D | M72: 3 | N72: 3 | O72: 3 | P72: 3 | Q72: 3 | R72: 3 | S72: D | T72: D | U72: 2 | V72: 2 | W72: 2 | X72: 2 | Y72: 2 | Z72: 2 | AA72: D | AB72: D | AC72: 1 | AD72: 1 | AE72: 1 | AF72: 1 | AG72: 1
A73: Omar Soto | B73: B | C73: D | D73: D | E73: 1 | F73: 1 | G73: 1 | H73: 1 | I73: 1 | J73: 1 | K73: D | L73: D | M73: 3 | N73: 3 | O73: 3 | P73: 3 | Q73: 3 | R73: 3 | S73: D | T73: D | U73: 2 | V73: 2 | W73: 2 | X73: 2 | Y73: 2 | Z73: 2 | AA73: D | AB73: D | AC73: 1 | AD73: 1 | AE73: 1 | AF73: 1 | AG73: 1
A74: Ricardo Epul | B74: B | C74: D | D74: D | E74: 1 | F74: 1 | G74: 1 | H74: 1 | I74: 1 | J74: 1 | K74: D | L74: D | M74: 3 | N74: 3 | O74: 3 | P74: 3 | Q74: 3 | R74: 3 | S74: D | T74: D | U74: 2 | V74: 2 | W74: 2 | X74: 2 | Y74: 2 | Z74: 2 | AA74: D | AB74: D | AC74: 1 | AD74: 1 | AE74: 1 | AF74: 1 | AG74: 1
A75: Roberto Romero | B75: C | C75: 2 | D75: 2 | E75: 2 | F75: 2 | G75: 2 | H75: 2 | I75: D | J75: D | K75: 1 | L75: 1 | M75: 1 | N75: 1 | O75: 1 | P75: 1 | Q75: D | R75: D | S75: 3 | T75: 3 | U75: 3 | V75: 3 | W75: 3 | X75: 3 | Y75: D | Z75: D | AA75: 2 | AB75: 2 | AC75: 2 | AD75: 2 | AE75: 2 | AF75: 2 | AG75: D
A76: Aldo Castillo | B76: C | C76: 2 | D76: 2 | E76: 2 | F76: 2 | G76: 2 | H76: 2 | I76: D | J76: D | K76: 1 | L76: 1 | M76: 1 | N76: 1 | O76: 1 | P76: 1 | Q76: D | R76: D | S76: 3 | T76: 3 | U76: 3 | V76: 3 | W76: 3 | X76: 3 | Y76: D | Z76: D | AA76: 2 | AB76: 2 | AC76: 2 | AD76: 2 | AE76: 2 | AF76: 2 | AG76: D
A77: Samuel Sandoval | B77: C | C77: 2 | D77: 2 | E77: 2 | F77: 2 | G77: 2 | H77: 2 | I77: D | J77: D | K77: 1 | L77: 1 | M77: 1 | N77: 1 | O77: 1 | P77: 1 | Q77: D | R77: D | S77: 3 | T77: 3 | U77: 3 | V77: 3 | W77: 3 | X77: 3 | Y77: D | Z77: D | AA77: 2 | AB77: 2 | AC77: 2 | AD77: 2 | AE77: 2 | AF77: 2 | AG77: D
A78: Julio Muñoz | B78: D | C78: 3 | D78: 3 | E78: 3 | F78: 3 | G78: D | H78: D | I78: 2 | J78: 2 | K78: 2 | L78: 2 | M78: 2 | N78: 2 | O78: D | P78: D | Q78: 1 | R78: 1 | S78: 1 | T78: 1 | U78: 1 | V78: 1 | W78: D | X78: D | Y78: 3 | Z78: 3 | AA78: 3 | AB78: 3 | AC78: 3 | AD78: 3 | AE78: D | AF78: D | AG78: 2
A79: Miguel Muñoz | B79: D | C79: 3 | D79: 3 | E79: 3 | F79: 3 | G79: D | H79: D | I79: 2 | J79: 2 | K79: 2 | L79: 2 | M79: 2 | N79: 2 | O79: D | P79: D | Q79: 1 | R79: 1 | S79: 1 | T79: 1 | U79: 1 | V79: 1 | W79: D | X79: D | Y79: 3 | Z79: 3 | AA79: 3 | AB79: 3 | AC79: 3 | AD79: 3 | AE79: D | AF79: D | AG79: 2
A80: Jorge Aguirre | B80: D | C80: 3 | D80: 3 | E80: 3 | F80: 3 | G80: D | H80: D | I80: 2 | J80: 2 | K80: 2 | L80: 2 | M80: 2 | N80: 2 | O80: D | P80: D | Q80: 1 | R80: 1 | S80: 1 | T80: 1 | U80: 1 | V80: 1 | W80: D | X80: D | Y80: 3 | Z80: 3 | AA80: 3 | AB80: 3 | AC80: 3 | AD80: 3 | AE80: D | AF80: D | AG80: 2
C82: 2018-06-01
C83: V | D83: S | E83: D | F83: L | G83: M | H83: M | I83: J | J83: V | K83: S | L83: D | M83: L | N83: M | O83: M | P83: J | Q83: V | R83: S | S83: D | T83: L | U83: M | V83: M | W83: J | X83: V | Y83: S | Z83: D | AA83: L | AB83: M | AC83: M | AD83: J | AE83: V | AF83: S
B84: Turno | C84: 1 | D84: 2 | E84: 3 | F84: 4 | G84: 5 | H84: 6 | I84: 7 | J84: 8 | K84: 9 | L84: 10 | M84: 11 | N84: 12 | O84: 13 | P84: 14 | Q84: 15 | R84: 16 | S84: 17 | T84: 18 | U84: 19 | V84: 20 | W84: 21 | X84: 22 | Y84: 23 | Z84: 24 | AA84: 25 | AB84: 26 | AC84: 27 | AD84: 28 | AE84: 29 | AF84: 30
A85: Leonel Castillo | B85: A | C85: 3 | D85: 3 | E85: 3 | F85: D | G85: D | H85: 2 | I85: 2 | J85: 2 | K85: 2 | L85: 2 | M85: 2 | N85: D | O85: D | P85: 1 | Q85: 1 | R85: 1 | S85: 1 | T85: 1 | U85: 1 | V85: D | W85: D | X85: 3 | Y85: 3 | Z85: 3 | AA85: 3 | AB85: 3 | AC85: 3 | AD85: D | AE85: D | AF85: 2
A86: Ivan Escobar | B86: A | C86: 3 | D86: 3 | E86: 3 | F86: D | G86: D | H86: 2 | I86: 2 | J86: 2 | K86: 2 | L86: 2 | M86: 2 | N86: D | O86: D | P86: 1 | Q86: 1 | R86: 1 | S86: 1 | T86: 1 | U86: 1 | V86: D | W86: D | X86: 3 | Y86: 3 | Z86: 3 | AA86: 3 | AB86: 3 | AC86: 3 | AD86: D | AE86: D | AF86: 2
A87: Valeria Cabello | B87: A | C87: 3 | D87: 3 | E87: 3 | F87: D | G87: D | H87: 2 | I87: 2 | J87: 2 | K87: 2 | L87: 2 | M87: 2 | N87: D | O87: D | P87: 1 | Q87: 1 | R87: 1 | S87: 1 | T87: 1 | U87: 1 | V87: D | W87: D | X87: 3 | Y87: 3 | Z87: 3 | AA87: 3 | AB87: 3 | AC87: 3 | AD87: D | AE87: D | AF87: 2
A88: Rodrigo Chavez | B88: B | C88: 1 | D88: D | E88: D | F88: 3 | G88: 3 | H88: 3 | I88: 3 | J88: 3 | K88: 3 | L88: D | M88: D | N88: 2 | O88: 2 | P88: 2 | Q88: 2 | R88: 2 | S88: 2 | T88: D | U88: D | V88: 1 | W88: 1 | X88: 1 | Y88: 1 | Z88: 1 | AA88: 1 | AB88: D | AC88: D | AD88: 3 | AE88: 3 | AF88: 3
A89: Omar Soto | B89: B | C89: 1 | D89: D | E89: D | F89: 3 | G89: 3 | H89: 3 | I89: 3 | J89: 3 | K89: 3 | L89: D | M89: D | N89: 2 | O89: 2 | P89: 2 | Q89: 2 | R89: 2 | S89: 2 | T89: D | U89: D | V89: 1 | W89: 1 | X89: 1 | Y89: 1 | Z89: 1 | AA89: 1 | AB89: D | AC89: D | AD89: 3 | AE89: 3 | AF89: 3
A90: Ricardo Epul | B90: B | C90: 1 | D90: D | E90: D | F90: 3 | G90: 3 | H90: 3 | I90: 3 | J90: 3 | K90: 3 | L90: D | M90: D | N90: 2 | O90: 2 | P90: 2 | Q90: 2 | R90: 2 | S90: 2 | T90: D | U90: D | V90: 1 | W90: 1 | X90: 1 | Y90: 1 | Z90: 1 | AA90: 1 | AB90: D | AC90: D | AD90: 3 | AE90: 3 | AF90: 3
A91: Roberto Romero | B91: C | C91: D | D91: 1 | E91: 1 | F91: 1 | G91: 1 | H91: 1 | I91: 1 | J91: D | K91: D | L91: 3 | M91: 3 | N91: 3 | O91: 3 | P91: 3 | Q91: 3 | R91: D | S91: D | T91: 2 | U91: 2 | V91: 2 | W91: 2 | X91: 2 | Y91: 2 | Z91: D | AA91: D | AB91: 1 | AC91: 1 | AD91: 1 | AE91: 1 | AF91: 1
A92: Aldo Castillo | B92: C | C92: D | D92: 1 | E92: 1 | F92: 1 | G92: 1 | H92: 1 | I92: 1 | J92: D | K92: D | L92: 3 | M92: 3 | N92: 3 | O92: 3 | P92: 3 | Q92: 3 | R92: D | S92: D | T92: 2 | U92: 2 | V92: 2 | W92: 2 | X92: 2 | Y92: 2 | Z92: D | AA92: D | AB92: 1 | AC92: 1 | AD92: 1 | AE92: 1 | AF92: 1
A93: Samuel Sandoval | B93: C | C93: D | D93: 1 | E93: 1 | F93: 1 | G93: 1 | H93: 1 | I93: 1 | J93: D | K93: D | L93: 3 | M93: 3 | N93: 3 | O93: 3 | P93: 3 | Q93: 3 | R93: D | S93: D | T93: 2 | U93: 2 | V93: 2 | W93: 2 | X93: 2 | Y93: 2 | Z93: D | AA93: D | AB93: 1 | AC93: 1 | AD93: 1 | AE93: 1 | AF93: 1
A94: Julio Muñoz | B94: D | C94: 2 | D94: 2 | E94: 2 | F94: 2 | G94: 2 | H94: D | I94: D | J94: 1 | K94: 1 | L94: 1 | M94: 1 | N94: 1 | O94: 1 | P94: D | Q94: D | R94: 3 | S94: 3 | T94: 3 | U94: 3 | V94: 3 | W94: 3 | X94: D | Y94: D | Z94: 2 | AA94: 2 | AB94: 2 | AC94: 2 | AD94: 2 | AE94: 2 | AF94: D
A95: Miguel Muñoz | B95: D | C95: 2 | D95: 2 | E95: 2 | F95: 2 | G95: 2 | H95: D | I95: D | J95: 1 | K95: 1 | L95: 1 | M95: 1 | N95: 1 | O95: 1 | P95: D | Q95: D | R95: 3 | S95: 3 | T95: 3 | U95: 3 | V95: 3 | W95: 3 | X95: D | Y95: D | Z95: 2 | AA95: 2 | AB95: 2 | AC95: 2 | AD95: 2 | AE95: 2 | AF95: D
A96: Jorge Aguirre | B96: D | C96: 2 | D96: 2 | E96: 2 | F96: 2 | G96: 2 | H96: D | I96: D | J96: 1 | K96: 1 | L96: 1 | M96: 1 | N96: 1 | O96: V | P96: D | Q96: D | R96: 3 | S96: 3 | T96: 3 | U96: 3 | V96: 3 | W96: 3 | X96: D | Y96: D | Z96: 2 | AA96: 2 | AB96: 2 | AC96: 2 | AD96: 2 | AE96: 2 | AF96: D
C98: 2018-07-01
C99: D | D99: L | E99: M | F99: M | G99: J | H99: V | I99: S | J99: D | K99: L | L99: M | M99: M | N99: J | O99: V | P99: S | Q99: D | R99: L | S99: M | T99: M | U99: J | V99: V | W99: S | X99: D | Y99: L | Z99: M | AA99: M | AB99: J | AC99: V | AD99: S | AE99: D | AF99: L | AG99: M
C100: 1 | D100: 2 | E100: 3 | F100: 4 | G100: 5 | H100: 6 | I100: 7 | J100: 8 | K100: 9 | L100: 10 | M100: 11 | N100: 12 | O100: 13 | P100: 14 | Q100: 15 | R100: 16 | S100: 17 | T100: 18 | U100: 19 | V100: 20 | W100: 21 | X100: 22 | Y100: 23 | Z100: 24 | AA100: 25 | AB100: 26 | AC100: 27 | AD100: 28 | AE100: 29 | AF100: 30 | AG100: 31
A101: Leonel Castillo | B101: A | C101: 2 | D101: 2 | E101: 2 | F101: 2 | G101: 2 | H101: D | I101: D | J101: 1 | K101: 1 | L101: 1 | M101: 1 | N101: 1 | O101: L | P101: D | Q101: D | R101: 3 | S101: 3 | T101: 3 | U101: 3 | V101: 3 | W101: L2 | X101: D | Y101: D | Z101: 2 | AA101: 2 | AB101: 2 | AC101: 2 | AD101: 2 | AE101: 2 | AF101: D | AG101: D
A102: Ivan Escobar | C102: 2 | D102: 2 | E102: 2 | F102: 2 | G102: 2 | H102: D | I102: D | J102: 1 | K102: 1 | L102: 1 | M102: 1 | N102: 1 | O102: 1 | P102: D | Q102: D | R102: 3 | S102: 3 | T102: 3 | U102: 3 | V102: 3 | W102: 3 | X102: D | Y102: D | Z102: L | AA102: 2 | AB102: 2 | AC102: 2 | AD102: L | AE102: L | AF102: D | AG102: D
A103: Valeria Cabello | C103: 2 | D103: 2 | E103: 2 | F103: 2 | G103: 2 | H103: D | I103: D | J103: 1 | K103: L | L103: 1 | M103: 1 | N103: 1 | O103: 1 | P103: D | Q103: D | R103: 3 | S103: 3 | T103: 3 | U103: 3 | V103: 3 | W103: 3 | X103: D | Y103: D | Z103: 2 | AA103: 2 | AB103: 2 | AC103: 2 | AD103: 2 | AE103: 2 | AF103: D | AG103: D
A104: Rodrigo Chavez | B104: B | C104: 3 | D104: 3 | E104: 3 | F104: D | G104: D | H104: 2 | I104: 2 | J104: 2 | K104: 2 | L104: 2 | M104: 2 | N104: D | O104: D | P104: 1 | Q104: 1 | R104: 1 | S104: L | T104: 1 | U104: 1 | V104: D | W104: D | X104: L2 | Y104: 3 | Z104: 3 | AA104: 3 | AB104: 3 | AC104: 3 | AD104: D | AE104: D | AF104: 2 | AG104: 2
A105: Omar Soto | C105: 3 | D105: 3 | E105: 3 | F105: D | G105: D | H105: 2 | I105: 1 | J105: 2 | K105: 2 | L105: 2 | M105: 2 | N105: D | O105: D | P105: 1 | Q105: 1 | R105: 1 | S105: 1 | T105: 1 | U105: L | V105: D | W105: D | X105: 3 | Y105: 3 | Z105: 3 | AA105: 3 | AB105: 3 | AC105: 3 | AD105: D | AE105: D | AF105: 2 | AG105: 2
A106: Ricardo Epul | C106: 3 | D106: 3 | E106: 3 | F106: D | G106: D | H106: 2 | I106: 2 | J106: 2 | K106: 2 | L106: 2 | M106: L | N106: D | O106: D | P106: 1 | Q106: 1 | R106: 1 | S106: 1 | T106: 1 | U106: 1 | V106: D | W106: D | X106: 3 | Y106: 3 | Z106: 3 | AA106: 3 | AB106: 3 | AC106: 3 | AD106: D | AE106: D | AF106: 2 | AG106: 2
A107: Roberto Romero | B107: C | C107: 1 | D107: D | E107: D | F107: 3 | G107: 3 | H107: 3 | I107: 3 | J107: 3 | K107: 3 | L107: D | M107: D | N107: 2 | O107: 2 | P107: 2 | Q107: 2 | R107: 2 | S107: 2 | T107: D | U107: D | V107: V | W107: V | X107: V | Y107: V | Z107: V | AA107: V | AB107: D | AC107: D | AD107: 3 | AE107: 3 | AF107: 3 | AG107: 3
A108: Aldo Castillo | C108: 1 | D108: D | E108: D | F108: 3 | G108: 3 | H108: 3 | I108: 3 | J108: 3 | K108: 3 | L108: D | M108: D | N108: 2 | O108: 2 | P108: 2 | Q108: 2 | R108: 2 | S108: 2 | T108: D | U108: D | V108: 1 | W108: 1 | X108: 1 | Y108: 1 | Z108: 1 | AA108: 1 | AB108: D | AC108: D | AD108: 3 | AE108: 3 | AF108: 3 | AG108: 3
A109: Samuel Sandoval | C109: 1 | D109: D | E109: D | F109: 3 | G109: 3 | H109: 3 | I109: 3 | J109: 3 | K109: 3 | L109: D | M109: D | N109: 2 | O109: L | P109: 2 | Q109: 2 | R109: 2 | S109: 2 | T109: D | U109: D | V109: 1 | W109: 1 | X109: 1 | Y109: 1 | Z109: 1 | AA109: 1 | AB109: D | AC109: D | AD109: 3 | AE109: 3 | AF109: 3 | AG109: 3
A110: Julio Muñoz | B110: D | C110: D | D110: 1 | E110: 1 | F110: 1 | G110: 1 | H110: 1 | I110: 1 | J110: D | K110: D | L110: 3 | M110: 3 | N110: 3 | O110: 3 | P110: 3 | Q110: 3 | R110: D | S110: D | T110: 2 | U110: 2 | V110: 2 | W110: L1 | X110: L1 | Y110: 2 | Z110: D | AA110: D | AB110: L | AC110: 1 | AD110: 1 | AE110: 1 | AF110: L | AG110: 1
A111: Miguel Muñoz | C111: D | D111: 1 | E111: 1 | F111: 1 | G111: 1 | H111: 1 | I111: 2 | J111: D | K111: D | L111: 3 | M111: 3 | N111: 3 | O111: 3 | P111: 3 | Q111: 3 | R111: D | S111: D | T111: 2 | U111: 2 | V111: 2 | W111: 2 | X111: 2 | Y111: 2 | Z111: D | AA111: D | AB111: 1 | AC111: 1 | AD111: 1 | AE111: 1 | AF111: 1 | AG111: L
A112: Jorge Aguirre | C112: D | D112: 1 | E112: L | F112: 1 | G112: 1 | H112: 1 | I112: 1 | J112: D | K112: D | L112: 3 | M112: 3 | N112: 3 | O112: 3 | P112: 3 | Q112: 3 | R112: D | S112: D | T112: L | U112: 2 | V112: 2 | W112: 2 | X112: 2 | Y112: 2 | Z112: D | AA112: D | AB112: 1 | AC112: 1 | AD112: 1 | AE112: 1 | AF112: 1 | AG112: 1
C114: 2018-08-01
C115: M | D115: J | E115: V | F115: S | G115: D | H115: L | I115: M | J115: M | K115: J | L115: V | M115: S | N115: D | O115: L | P115: M | Q115: M | R115: J | S115: V | T115: S | U115: D | V115: L | W115: M | X115: M | Y115: J | Z115: V | AA115: S | AB115: D | AC115: L | AD115: M | AE115: M | AF115: J | AG115: V
C116: 1 | D116: 2 | E116: 3 | F116: 4 | G116: 5 | H116: 6 | I116: 7 | J116: 8 | K116: 9 | L116: 10 | M116: 11 | N116: 12 | O116: 13 | P116: 14 | Q116: 15 | R116: 16 | S116: 17 | T116: 18 | U116: 19 | V116: 20 | W116: 21 | X116: 22 | Y116: 23 | Z116: 24 | AA116: 25 | AB116: 26 | AC116: 27 | AD116: 28 | AE116: 29 | AF116: 30 | AG116: 31
A117: Leonel Castillo | B117: A | C117: 1 | D117: 1 | E117: 1 | F117: 1 | G117: 1 | H117: 1 | I117: D | J117: D | K117: 3 | L117: 3 | M117: L2 | N117: L2 | O117: 3 | P117: 3 | Q117: D | R117: D | S117: 2 | T117: 2 | U117: 2 | V117: 2 | W117: 2 | X117: 2 | Y117: D | Z117: D | AA117: 1 | AB117: 1 | AC117: L | AD117: 1 | AE117: 1 | AF117: 1 | AG117: D
A118: Ivan Escobar | C118: L | D118: L | E118: L | F118: L | G118: L | H118: L | I118: L | J118: L | K118: L | L118: L | M118: 3 | N118: 3 | O118: 3 | P118: 3 | Q118: D | R118: D | S118: 2 | T118: 2 | U118: 2 | V118: 2 | W118: 2 | X118: 2 | Y118: D | Z118: D | AA118: 1 | AB118: 1 | AC118: 1 | AD118: 1 | AE118: 1 | AF118: L | AG118: D
A119: Valeria Cabello | C119: V | D119: V | E119: V | F119: V | G119: V | H119: V | I119: D | J119: D | K119: 3 | L119: 3 | M119: 3 | N119: 3 | O119: 3 | P119: 3 | Q119: D | R119: D | S119: 2 | T119: 2 | U119: 2 | V119: 2 | W119: 2 | X119: L | Y119: D | Z119: D | AA119: 1 | AB119: 1 | AC119: 1 | AD119: 1 | AE119: L | AF119: 1 | AG119: D
A120: Rodrigo Chavez | B120: B | C120: 2 | D120: 2 | E120: 2 | F120: 2 | G120: D | H120: D | I120: V | J120: V | K120: V | L120: V | M120: V | N120: V | O120: D | P120: D | Q120: 3 | R120: 3 | S120: 3 | T120: 3 | U120: 3 | V120: 3 | W120: D | X120: D | Y120: 2 | Z120: 2 | AA120: 2 | AB120: 2 | AC120: 2 | AD120: 2 | AE120: D | AF120: D | AG120: 1
A121: Omar Soto | C121: L1 | D121: L1 | E121: L1 | F121: L1 | G121: D | H121: D | I121: 1 | J121: 1 | K121: L1 | L121: L1 | M121: 1 | N121: 1 | O121: D | P121: D | Q121: 3 | R121: 3 | S121: 3 | T121: 3 | U121: 3 | V121: 3 | W121: D | X121: D | Y121: 2 | Z121: 2 | AA121: 2 | AB121: 2 | AC121: 2 | AD121: 2 | AE121: D | AF121: D | AG121: V
A122: Ricardo Epul | C122: 2 | D122: 2 | E122: 2 | F122: L1 | G122: D | H122: D | I122: 1 | J122: 1 | K122: 1 | L122: 1 | M122: 1 | N122: 1 | O122: D | P122: D | Q122: 3 | R122: 3 | S122: 3 | T122: 3 | U122: 3 | V122: 3 | W122: D | X122: D | Y122: L | Z122: 2 | AA122: 2 | AB122: 2 | AC122: 2 | AD122: 2 | AE122: D | AF122: D | AG122: 1
A123: Roberto Romero | B123: C | C123: 3 | D123: 3 | E123: D | F123: D | G123: 2 | H123: 2 | I123: 2 | J123: 2 | K123: 2 | L123: 2 | M123: D | N123: D | O123: 1 | P123: 1 | Q123: 1 | R123: 1 | S123: L | T123: 1 | U123: D | V123: D | W123: 3 | X123: 3 | Y123: 3 | Z123: 3 | AA123: 3 | AB123: 3 | AC123: D | AD123: D | AE123: 2 | AF123: 2 | AG123: 2
A124: Aldo Castillo | C124: 3 | D124: L2 | E124: D | F124: D | G124: L1 | H124: L1 | I124: 2 | J124: 2 | K124: L2 | L124: L2 | M124: D | N124: D | O124: L | P124: 1 | Q124: 1 | R124: 1 | S124: 1 | T124: 1 | U124: D | V124: D | W124: 3 | X124: 3 | Y124: 3 | Z124: 3 | AA124: 3 | AB124: 3 | AC124: D | AD124: D | AE124: 2 | AF124: 2 | AG124: 2
A125: Samuel Sandoval | C125: L2 | D125: 3 | E125: D | F125: D | G125: L1 | H125: L1 | I125: 2 | J125: 2 | K125: 2 | L125: L | M125: D | N125: D | O125: 1 | P125: 1 | Q125: 1 | R125: 1 | S125: 1 | T125: 1 | U125: D | V125: D | W125: 3 | X125: 3 | Y125: 3 | Z125: 3 | AA125: 3 | AB125: 3 | AC125: D | AD125: D | AE125: 2 | AF125: 2 | AG125: L
A126: Julio Muñoz | B126: D | C126: D | D126: D | E126: 3 | F126: 3 | G126: 3 | H126: 3 | I126: 3 | J126: 3 | K126: D | L126: D | M126: L1 | N126: L1 | O126: 2 | P126: 2 | Q126: 2 | R126: 2 | S126: D | T126: D | U126: 1 | V126: 1 | W126: 1 | X126: 1 | Y126: 1 | Z126: L | AA126: D | AB126: D | AC126: 3 | AD126: 3 | AE126: 3 | AF126: 3 | AG126: 3
A127: Miguel Muñoz | C127: D | D127: D | E127: L2 | F127: L2 | G127: L2 | H127: L2 | I127: 3 | J127: 3 | K127: D | L127: D | M127: 2 | N127: 2 | O127: 2 | P127: 2 | Q127: 2 | R127: 2 | S127: D | T127: D | U127: 1 | V127: 1 | W127: 1 | X127: 1 | Y127: 1 | Z127: 1 | AA127: D | AB127: D | AC127: 3 | AD127: 3 | AE127: 3 | AF127: 3 | AG127: 3
A128: Jorge Aguirre | C128: D | D128: D | E128: 3 | F128: L2 | G128: L2 | H128: L2 | I128: 3 | J128: 3 | K128: D | L128: D | M128: 2 | N128: 2 | O128: 2 | P128: 2 | Q128: 2 | R128: L | S128: D | T128: D | U128: 1 | V128: 1 | W128: 1 | X128: 1 | Y128: 1 | Z128: 1 | AA128: D | AB128: D | AC128: 3 | AD128: 3 | AE128: 3 | AF128: 3 | AG128: 3
C130: 2018-09-01
C131: S | D131: D | E131: L | F131: M | G131: M | H131: J | I131: V | J131: S | K131: D | L131: L | M131: M | N131: M | O131: J | P131: V | Q131: S | R131: D | S131: L | T131: M | U131: M | V131: J | W131: V | X131: S | Y131: D | Z131: L | AA131: M | AB131: M | AC131: J | AD131: V | AE131: S | AF131: D
C132: 1 | D132: 2 | E132: 3 | F132: 4 | G132: 5 | H132: 6 | I132: 7 | J132: 8 | K132: 9 | L132: 10 | M132: 11 | N132: 12 | O132: 13 | P132: 14 | Q132: 15 | R132: 16 | S132: 17 | T132: 18 | U132: 19 | V132: 20 | W132: 21 | X132: 22 | Y132: 23 | Z132: 24 | AA132: 25 | AB132: 26 | AC132: 27 | AD132: 28 | AE132: 29 | AF132: 30
A133: Leonel Castillo | B133: A | C133: D | D133: L | E133: L | F133: L | G133: L | H133: L | I133: L | J133: D | K133: D | L133: 2 | M133: 2 | N133: 2 | O133: 2 | P133: 2 | Q133: 2 | R133: D | S133: D | T133: 1 | U133: 1 | V133: 1 | W133: 1 | X133: 1 | Y133: 1 | Z133: D | AA133: D | AB133: 3 | AC133: 3 | AD133: 3 | AE133: 3 | AF133: 3
A134: Ivan Escobar | C134: D | D134: L2 | E134: 3 | F134: 3 | G134: 3 | H134: L2 | I134: L2 | J134: D | K134: D | L134: 2 | M134: 2 | N134: L | O134: 2 | P134: 2 | Q134: L1 | R134: D | S134: D | T134: 1 | U134: 1 | V134: 1 | W134: 1 | X134: 1 | Y134: 1 | Z134: D | AA134: D | AB134: 3 | AC134: 3 | AD134: 3 | AE134: 3 | AF134: 3
A135: Valeria Cabello | C135: D | D135: 3 | E135: 3 | F135: 3 | G135: 3 | H135: L2 | I135: L2 | J135: D | K135: D | L135: 2 | M135: 2 | N135: 2 | O135: 2 | P135: 2 | Q135: 2 | R135: D | S135: D | T135: 1 | U135: 1 | V135: 1 | W135: L | X135: 1 | Y135: 1 | Z135: D | AA135: D | AB135: 3 | AC135: 3 | AD135: 3 | AE135: 3 | AF135: 3
A136: Rodrigo Chavez | B136: B | C136: 1 | D136: 1 | E136: L1 | F136: L1 | G136: L1 | H136: D | I136: D | J136: L2 | K136: 3 | L136: 3 | M136: 3 | N136: 3 | O136: 3 | P136: D | Q136: D | R136: 2 | S136: 2 | T136: 2 | U136: 2 | V136: 2 | W136: 2 | X136: D | Y136: D | Z136: L | AA136: 1 | AB136: 1 | AC136: 1 | AD136: L | AE136: 1 | AF136: D
A137: Omar Soto | C137: V | D137: V | E137: V | F137: V | G137: V | H137: D | I137: D | J137: L2 | K137: L2 | L137: 3 | M137: 3 | N137: 3 | O137: 3 | P137: D | Q137: D | R137: L1 | S137: 2 | T137: 2 | U137: 2 | V137: 2 | W137: 2 | X137: D | Y137: D | Z137: 1 | AA137: 1 | AB137: L | AC137: 1 | AD137: 1 | AE137: 1 | AF137: D
A138: Ricardo Epul | C138: 1 | D138: 1 | E138: 1 | F138: 1 | G138: 1 | H138: D | I138: D | J138: L2 | K138: 3 | L138: 3 | M138: 3 | N138: 3 | O138: 3 | P138: D | Q138: D | R138: 2 | S138: 2 | T138: 2 | U138: 2 | V138: 2 | W138: L | X138: D | Y138: D | Z138: 1 | AA138: 1 | AB138: 1 | AC138: 1 | AD138: 1 | AE138: 1 | AF138: D
A139: Roberto Romero | B139: C | C139: 2 | D139: 2 | E139: L2 | F139: D | G139: D | H139: L2 | I139: L2 | J139: D | K139: 1 | L139: 1 | M139: 1 | N139: D | O139: D | P139: 3 | Q139: 3 | R139: 3 | S139: 3 | T139: 3 | U139: 3 | V139: D | W139: D | X139: 2 | Y139: 2 | Z139: 2 | AA139: 2 | AB139: 2 | AC139: 2 | AD139: D | AE139: D | AF139: 1
A140: Aldo Castillo | C140: L1 | D140: 2 | E140: 2 | F140: D | G140: D | H140: L1 | I140: L1 | J140: 1 | K140: 1 | L140: 1 | M140: 1 | N140: D | O140: D | P140: 3 | Q140: L2 | R140: 3 | S140: 3 | T140: 3 | U140: 3 | V140: D | W140: D | X140: 2 | Y140: 2 | Z140: 2 | AA140: 2 | AB140: 2 | AC140: L | AD140: D | AE140: D | AF140: 1
A141: Samuel Sandoval | C141: 2 | D141: L1 | E141: L | F141: D | G141: D | H141: V | I141: V | J141: V | K141: V | L141: V | M141: V | N141: D | O141: D | P141: 3 | Q141: 3 | R141: L2 | S141: 3 | T141: 3 | U141: 3 | V141: D | W141: D | X141: 2 | Y141: 2 | Z141: 2 | AA141: 2 | AB141: 2 | AC141: 2 | AD141: D | AE141: D | AF141: 1
A142: Julio Muñoz | B142: D | C142: 3 | D142: 3 | E142: D | F142: L2 | G142: L2 | H142: D | I142: D | J142: L1 | K142: 2 | L142: D | M142: D | N142: 1 | O142: 1 | P142: 1 | Q142: 1 | R142: 1 | S142: 1 | T142: D | U142: D | V142: 3 | W142: 3 | X142: 3 | Y142: 3 | Z142: 3 | AA142: 3 | AB142: D | AC142: D | AD142: 2 | AE142: 2 | AF142: 2
A143: Miguel Muñoz | C143: L2 | D143: D | E143: D | F143: 2 | G143: 2 | H143: L1 | I143: L1 | J143: L1 | K143: 2 | L143: D | M143: D | N143: V | O143: V | P143: V | Q143: V | R143: V | S143: V | T143: D | U143: D | V143: 3 | W143: 3 | X143: 3 | Y143: 3 | Z143: 3 | AA143: 3 | AB143: D | AC143: D | AD143: L | AE143: 2 | AF143: 2
A144: Jorge Aguirre | C144: 3 | D144: D | E144: D | F144: 2 | G144: L | H144: L1 | I144: L1 | J144: L1 | K144: L1 | L144: D | M144: D | N144: 1 | O144: 1 | P144: 1 | Q144: 1 | R144: 1 | S144: 1 | T144: D | U144: D | V144: 3 | W144: 3 | X144: 3 | Y144: 3 | Z144: 3 | AA144: 3 | AB144: D | AC144: D | AD144: 2 | AE144: 2 | AF144: 2
Z145: vacaciones Patricio
C147: 2018-10-01
C148: L | D148: M | E148: M | F148: J | G148: V | H148: S | I148: D | J148: L | K148: M | L148: M | M148: J | N148: V | O148: S | P148: D | Q148: L | R148: M | S148: M | T148: J | U148: V | V148: S | W148: D | X148: L | Y148: M | Z148: M | AA148: J | AB148: V | AC148: S | AD148: D | AE148: L | AF148: M | AG148: M
C149: 1 | D149: 2 | E149: 3 | F149: 4 | G149: 5 | H149: 6 | I149: 7 | J149: 8 | K149: 9 | L149: 10 | M149: 11 | N149: 12 | O149: 13 | P149: 14 | Q149: 15 | R149: 16 | S149: 17 | T149: 18 | U149: 19 | V149: 20 | W149: 21 | X149: 22 | Y149: 23 | Z149: 24 | AA149: 25 | AB149: 26 | AC149: 27 | AD149: 28 | AE149: 29 | AF149: 30 | AG149: 31
A150: Leonel Castillo | B150: A | C150: 3 | D150: D | E150: D | F150: 2 | G150: 2 | H150: 2 | I150: 2 | J150: 2 | K150: 2 | L150: D | M150: D | N150: V | O150: V | P150: V | Q150: V | R150: V | S150: V | T150: D | U150: D | V150: 3 | W150: 3 | X150: 3 | Y150: 3 | Z150: 3 | AA150: 3 | AB150: D | AC150: D | AD150: 2 | AE150: 2 | AF150: 2 | AG150: L1
A151: Ivan Escobar | C151: 3 | D151: D | E151: D | F151: L | G151: 2 | H151: 2 | I151: 2 | J151: 2 | K151: 2 | L151: D | M151: D | N151: 1 | O151: 1 | P151: 1 | Q151: 1 | R151: 1 | S151: 1 | T151: D | U151: D | V151: 3 | W151: L2 | X151: 3 | Y151: 3 | Z151: 3 | AA151: 3 | AB151: D | AC151: D | AD151: L1 | AE151: L | AF151: L | AG151: L
A152: Valeria Cabello | C152: 3 | D152: D | E152: D | F152: 2 | G152: 2 | H152: 2 | I152: 2 | J152: L | K152: 2 | L152: D | M152: D | N152: 1 | O152: 1 | P152: 1 | Q152: 1 | R152: 1 | S152: 1 | T152: D | U152: D | V152: L2 | W152: 3 | X152: 3 | Y152: 3 | Z152: 3 | AA152: 3 | AB152: D | AC152: D | AD152: 2 | AE152: 2 | AF152: L1 | AG152: 2
A153: Rodrigo Chavez | B153: B | C153: D | D153: 3 | E153: 3 | F153: 3 | G153: 3 | H153: 3 | I153: 3 | J153: D | K153: D | L153: 2 | M153: 2 | N153: 2 | O153: L1 | P153: L1 | Q153: L1 | R153: D | S153: D | T153: 1 | U153: 1 | V153: 1 | W153: 1 | X153: 1 | Y153: 1 | Z153: D | AA153: D | AB153: 3 | AC153: 3 | AD153: 3 | AE153: 3 | AF153: 3 | AG153: L2
A154: Omar Soto | C154: D | D154: 3 | E154: 3 | F154: 3 | G154: 3 | H154: 3 | I154: 3 | J154: D | K154: D | L154: 2 | M154: 2 | N154: 2 | O154: 2 | P154: 2 | Q154: 2 | R154: D | S154: D | T154: 1 | U154: 1 | V154: 1 | W154: 1 | X154: 1 | Y154: 1 | Z154: D | AA154: D | AB154: 3 | AC154: L2 | AD154: 3 | AE154: 3 | AF154: L2 | AG154: 3
A155: Ricardo Epul | C155: D | D155: 3 | E155: 3 | F155: 3 | G155: 3 | H155: 3 | I155: 3 | J155: D | K155: D | L155: L | M155: 2 | N155: 2 | O155: 2 | P155: 2 | Q155: 2 | R155: D | S155: D | T155: V | U155: V | V155: V | W155: V | X155: V | Y155: V | Z155: D | AA155: D | AB155: 3 | AC155: 3 | AD155: L2 | AE155: 3 | AF155: 3 | AG155: 3
A156: Roberto Romero | B156: C | C156: 1 | D156: 1 | E156: 1 | F156: 1 | G156: 1 | H156: D | I156: D | J156: 3 | K156: 3 | L156: 3 | M156: 3 | N156: 3 | O156: L2 | P156: D | Q156: D | R156: 2 | S156: 2 | T156: 2 | U156: 2 | V156: 2 | W156: 2 | X156: D | Y156: D | Z156: 1 | AA156: 1 | AB156: 1 | AC156: 1 | AD156: 1 | AE156: 1 | AF156: D | AG156: D
A157: Aldo Castillo | C157: L | D157: 1 | E157: 1 | F157: 1 | G157: 1 | H157: D | I157: D | J157: 3 | K157: 3 | L157: 3 | M157: 3 | N157: 3 | O157: 3 | P157: D | Q157: D | R157: 2 | S157: 2 | T157: 2 | U157: 2 | V157: 2 | W157: L1 | X157: D | Y157: D | Z157: V | AA157: V | AB157: V | AC157: V | AD157: V | AE157: V | AF157: D | AG157: D
A158: Samuel Sandoval | C158: 1 | D158: 1 | E158: 1 | F158: 1 | G158: L | H158: D | I158: D | J158: 3 | K158: 3 | L158: 3 | M158: 3 | N158: 3 | O158: 3 | P158: D | Q158: D | R158: 2 | S158: 2 | T158: 2 | U158: 2 | V158: L1 | W158: 2 | X158: D | Y158: D | Z158: 1 | AA158: 1 | AB158: 1 | AC158: 1 | AD158: 1 | AE158: 1 | AF158: D | AG158: D
A159: Julio Muñoz | B159: D | C159: 2 | D159: 2 | E159: 2 | F159: D | G159: D | H159: 1 | I159: 1 | J159: 1 | K159: 1 | L159: L | M159: 1 | N159: D | O159: D | P159: L2 | Q159: L2 | R159: 3 | S159: 3 | T159: 3 | U159: 3 | V159: D | W159: D | X159: 2 | Y159: 2 | Z159: 2 | AA159: 2 | AB159: 2 | AC159: 2 | AD159: D | AE159: D | AF159: L | AG159: L
A160: Miguel Muñoz | C160: 2 | D160: 2 | E160: L | F160: D | G160: D | H160: 1 | I160: 1 | J160: 1 | K160: 1 | L160: 1 | M160: 1 | N160: D | O160: D | P160: 3 | Q160: 3 | R160: 3 | S160: 3 | T160: 3 | U160: 3 | V160: D | W160: D | X160: L | Y160: 2 | Z160: 2 | AA160: 2 | AB160: 2 | AC160: L1 | AD160: D | AE160: D | AF160: 1 | AG160: 1
A161: Jorge Aguirre | C161: 2 | D161: 2 | E161: 2 | F161: D | G161: D | H161: 1 | I161: 1 | J161: 1 | K161: 1 | L161: 1 | M161: 1 | N161: D | O161: D | P161: 3 | Q161: 3 | R161: 3 | S161: 3 | T161: 3 | U161: 3 | V161: D | W161: D | X161: 2 | Y161: 2 | Z161: 2 | AA161: 2 | AB161: 2 | AC161: 2 | AD161: D | AE161: D | AF161: 1 | AG161: 1
C163: 2018-11-01
C164: J | D164: V | E164: S | F164: D | G164: L | H164: M | I164: M | J164: J | K164: V | L164: S | M164: D | N164: L | O164: M | P164: M | Q164: J | R164: V | S164: S | T164: D | U164: L | V164: M | W164: M | X164: J | Y164: V | Z164: S | AA164: D | AB164: L | AC164: M | AD164: M | AE164: J | AF164: V
C165: 1 | D165: 2 | E165: 3 | F165: 4 | G165: 5 | H165: 6 | I165: 7 | J165: 8 | K165: 9 | L165: 10 | M165: 11 | N165: 12 | O165: 13 | P165: 14 | Q165: 15 | R165: 16 | S165: 17 | T165: 18 | U165: 19 | V165: 20 | W165: 21 | X165: 22 | Y165: 23 | Z165: 24 | AA165: 25 | AB165: 26 | AC165: 27 | AD165: 28 | AE165: 29 | AF165: 30
A166: Leonel Castillo | B166: A | C166: 2 | D166: 2 | E166: D | F166: D | G166: L | H166: 1 | I166: 1 | J166: 1 | K166: L | L166: 1 | M166: D | N166: D | O166: 3 | P166: 3 | Q166: 3 | R166: 3 | S166: 3 | T166: 3 | U166: D | V166: D | W166: 2 | X166: 2 | Y166: 2 | Z166: 2 | AA166: 2 | AB166: 2 | AC166: D | AD166: D | AE166: 1 | AF166: 1
A167: Ivan Escobar | C167: L | D167: L | E167: D | F167: D | G167: 1 | H167: 1 | I167: 1 | J167: 1 | K167: 1 | L167: 1 | M167: D | N167: D | O167: 3 | P167: 3 | Q167: 3 | R167: 3 | S167: 3 | T167: 3 | U167: D | V167: D | W167: L2 | X167: L2 | Y167: L2 | Z167: L2 | AA167: L2 | AB167: L | AC167: D | AD167: D | AE167: V | AF167: V
A168: Valeria Cabello | C168: 2 | D168: 2 | E168: D | F168: D | G168: 1 | H168: 1 | I168: 1 | J168: 1 | K168: 1 | L168: 1 | M168: D | N168: D | O168: 3 | P168: 3 | Q168: 3 | R168: 3 | S168: 3 | T168: 3 | U168: D | V168: D | W168: 2 | X168: 2 | Y168: L | Z168: 2 | AA168: 2 | AB168: 2 | AC168: D | AD168: D | AE168: 1 | AF168: 1
A169: Rodrigo Chavez | B169: B | C169: D | D169: D | E169: 2 | F169: 2 | G169: 2 | H169: 2 | I169: 2 | J169: 2 | K169: D | L169: D | M169: 1 | N169: L | O169: 1 | P169: 1 | Q169: 1 | R169: 1 | S169: D | T169: D | U169: 3 | V169: 3 | W169: 3 | X169: 3 | Y169: 3 | Z169: 3 | AA169: D | AB169: D | AC169: 2 | AD169: 2 | AE169: 2 | AF169: 2
A170: Omar Soto | C170: D | D170: D | E170: 2 | F170: 2 | G170: 2 | H170: 2 | I170: 2 | J170: 2 | K170: D | L170: D | M170: 1 | N170: 1 | O170: 1 | P170: 1 | Q170: L | R170: L | S170: D | T170: D | U170: L | V170: L | W170: L | X170: L | Y170: L | Z170: L | AA170: L | AB170: L | AC170: L | AD170: L | AE170: 2 | AF170: 2
A171: Ricardo Epul | C171: D | D171: D | E171: 2 | F171: 2 | G171: 2 | H171: 2 | I171: 2 | J171: L | K171: D | L171: D | M171: 1 | N171: 1 | O171: 1 | P171: 1 | Q171: 1 | R171: 1 | S171: D | T171: D | U171: 3 | V171: 3 | W171: 3 | X171: 3 | Y171: 3 | Z171: 3 | AA171: D | AB171: D | AC171: 2 | AD171: 2 | AE171: 2 | AF171: 2
A172: Roberto Romero | B172: C | C172: 3 | D172: 3 | E172: 3 | F172: 3 | G172: 3 | H172: 3 | I172: D | J172: D | K172: 2 | L172: 2 | M172: 2 | N172: 2 | O172: 2 | P172: 2 | Q172: D | R172: D | S172: 1 | T172: 1 | U172: 1 | V172: L | W172: L | X172: L | Y172: D | Z172: D | AA172: 3 | AB172: 3 | AC172: 3 | AD172: 3 | AE172: 3 | AF172: 3
A173: Aldo Castillo | C173: L2 | D173: 3 | E173: 3 | F173: 3 | G173: 3 | H173: 3 | I173: D | J173: D | K173: 2 | L173: L1 | M173: 2 | N173: 2 | O173: 2 | P173: 2 | Q173: D | R173: D | S173: 1 | T173: 1 | U173: L | V173: L1 | W173: 1 | X173: 1 | Y173: D | Z173: D | AA173: 3 | AB173: 3 | AC173: 3 | AD173: 3 | AE173: 3 | AF173: 3
A174: Samuel Sandoval | C174: 3 | D174: L2 | E174: 3 | F174: 3 | G174: 3 | H174: 3 | I174: D | J174: D | K174: 2 | L174: 2 | M174: 2 | N174: 2 | O174: 2 | P174: 2 | Q174: D | R174: D | S174: 1 | T174: 1 | U174: 1 | V174: 1 | W174: 1 | X174: 1 | Y174: D | Z174: D | AA174: 3 | AB174: 3 | AC174: 3 | AD174: 3 | AE174: 3 | AF174: 3
A175: Julio Muñoz | B175: D | C175: 1 | D175: 1 | E175: 1 | F175: 1 | G175: D | H175: D | I175: 3 | J175: 3 | K175: 3 | L175: 3 | M175: 3 | N175: 3 | O175: D | P175: D | Q175: 2 | R175: 2 | S175: 2 | T175: 2 | U175: 2 | V175: 2 | W175: D | X175: D | Y175: 1 | Z175: 1 | AA175: 1 | AB175: 1 | AC175: 1 | AD175: 1 | AE175: D | AF175: D
A176: Miguel Muñoz | C176: L1 | D176: 1 | E176: 1 | F176: 1 | G176: D | H176: D | I176: 3 | J176: 3 | K176: 3 | L176: L2 | M176: 3 | N176: 3 | O176: D | P176: D | Q176: L | R176: L | S176: 2 | T176: 2 | U176: L2 | V176: L2 | W176: D | X176: D | Y176: 1 | Z176: L1 | AA176: L1 | AB176: 1 | AC176: 1 | AD176: 1 | AE176: D | AF176: D
A177: Jorge Aguirre | C177: 1 | D177: L1 | E177: 1 | F177: 1 | G177: D | H177: D | I177: 3 | J177: 3 | K177: 3 | L177: 3 | M177: 3 | N177: 3 | O177: D | P177: D | Q177: 2 | R177: 2 | S177: 2 | T177: 2 | U177: 2 | V177: L | W177: D | X177: D | Y177: L1 | Z177: 1 | AA177: 1 | AB177: 1 | AC177: 1 | AD177: 1 | AE177: D | AF177: D
C179: 2018-12-01
C180: S | D180: D | E180: L | F180: M | G180: M | H180: J | I180: V | J180: S | K180: D | L180: L | M180: M | N180: M | O180: J | P180: V | Q180: S | R180: D | S180: L | T180: M | U180: M | V180: J | W180: V | X180: S | Y180: D | Z180: L | AA180: M | AB180: M | AC180: J | AD180: V | AE180: S | AF180: D | AG180: L
C181: 1 | D181: 2 | E181: 3 | F181: 4 | G181: 5 | H181: 6 | I181: 7 | J181: 8 | K181: 9 | L181: 10 | M181: 11 | N181: 12 | O181: 13 | P181: 14 | Q181: 15 | R181: 16 | S181: 17 | T181: 18 | U181: 19 | V181: 20 | W181: 21 | X181: 22 | Y181: 23 | Z181: 24 | AA181: 25 | AB181: 26 | AC181: 27 | AD181: 28 | AE181: 29 | AF181: 30 | AG181: 31
A182: Leonel Castillo | B182: A | C182: 2 | D182: 1 | E182: 1 | F182: 1 | G182: D | H182: D | I182: 3 | J182: 3 | K182: 3 | L182: 3 | M182: 3 | N182: 3 | O182: D | P182: D | Q182: 2 | R182: 2 | S182: 2 | T182: 2 | U182: 2 | V182: 2 | W182: D | X182: D | Y182: 1 | Z182: 1 | AA182: 1 | AB182: L | AC182: L | AD182: 1 | AE182: D | AF182: D | AG182: 3
A183: Ivan Escobar | C183: V | D183: V | E183: V | F183: V | G183: D | H183: D | I183: 3 | J183: 3 | K183: 3 | L183: 3 | M183: 3 | N183: 3 | O183: D | P183: D | Q183: 2 | R183: 2 | S183: 2 | T183: 2 | U183: 2 | V183: 2 | W183: D | X183: D | Y183: 1 | Z183: 1 | AA183: 1 | AB183: 1 | AC183: 1 | AD183: L | AE183: D | AF183: D | AG183: 3
A184: Valeria Cabello | C184: 1 | D184: 1 | E184: 1 | F184: 1 | G184: D | H184: D | I184: 3 | J184: 3 | K184: 3 | L184: 3 | M184: 3 | N184: 3 | O184: D | P184: D | Q184: 2 | R184: 2 | S184: 2 | T184: 2 | U184: 2 | V184: 2 | W184: D | X184: D | Y184: 1 | Z184: L | AA184: 1 | AB184: 1 | AC184: 1 | AD184: 1 | AE184: D | AF184: D | AG184: 3
A185: Rodrigo Chavez | B185: B | C185: 1 | D185: 2 | E185: D | F185: D | G185: L | H185: L | I185: 1 | J185: 1 | K185: 1 | L185: 1 | M185: D | N185: D | O185: 3 | P185: 3 | Q185: 3 | R185: 3 | S185: 3 | T185: 3 | U185: D | V185: D | W185: 2 | X185: 2 | Y185: 2 | Z185: 2 | AA185: 2 | AB185: 2 | AC185: D | AD185: D | AE185: 1 | AF185: 1 | AG185: 1
A186: Omar Soto | C186: L1 | D186: L1 | E186: D | F186: D | G186: 1 | H186: 1 | I186: L | J186: 1 | K186: 1 | L186: L | M186: D | N186: D | O186: 3 | P186: 3 | Q186: 3 | R186: 3 | S186: 3 | T186: 3 | U186: D | V186: D | W186: 2 | X186: 2 | Y186: 2 | Z186: 2 | AA186: 2 | AB186: 2 | AC186: D | AD186: D | AE186: 1 | AF186: 1 | AG186: 1
A187: Ricardo Epul | C187: 2 | D187: 2 | E187: D | F187: D | G187: 1 | H187: 1 | I187: 1 | J187: 1 | K187: 1 | L187: 1 | M187: D | N187: D | O187: 3 | P187: 3 | Q187: 3 | R187: 3 | S187: 3 | T187: 3 | U187: D | V187: D | W187: L | X187: L1 | Y187: 2 | Z187: 2 | AA187: 2 | AB187: 2 | AC187: D | AD187: D | AE187: 1 | AF187: 1 | AG187: 1
A188: Roberto Romero | B188: C | C188: D | D188: D | E188: 2 | F188: 2 | G188: 2 | H188: 2 | I188: 2 | J188: 2 | K188: D | L188: D | M188: 1 | N188: 1 | O188: L | P188: L | Q188: 1 | R188: 1 | S188: D | T188: D | U188: 3 | V188: 3 | W188: 3 | X188: 3 | Y188: 3 | Z188: 3 | AA188: D | AB188: D | AC188: 2 | AD188: 2 | AE188: 2 | AF188: 2 | AG188: 2
A189: Aldo Castillo | C189: D | D189: D | E189: 2 | F189: 2 | G189: 2 | H189: 2 | I189: 2 | J189: 2 | K189: D | L189: D | M189: L | N189: 1 | O189: 1 | P189: 1 | Q189: 1 | R189: 1 | S189: D | T189: D | U189: 3 | V189: 3 | W189: 3 | X189: 3 | Y189: 3 | Z189: 3 | AA189: D | AB189: D | AC189: L | AD189: 2 | AE189: 2 | AF189: 2 | AG189: 2
A190: Samuel Sandoval | C190: D | D190: D | E190: 2 | F190: 2 | G190: 2 | H190: 2 | I190: 2 | J190: 2 | K190: D | L190: D | M190: 1 | N190: 1 | O190: 1 | P190: 1 | Q190: 1 | R190: 1 | S190: D | T190: D | U190: 3 | V190: 3 | W190: 3 | X190: L2 | Y190: 3 | Z190: 3 | AA190: D | AB190: D | AC190: 2 | AD190: 2 | AE190: 2 | AF190: 2 | AG190: L
A191: Julio Muñoz | B191: D | C191: 3 | D191: 3 | E191: 3 | F191: 3 | G191: 3 | H191: 3 | I191: D | J191: D | K191: 2 | L191: 2 | M191: 2 | N191: 2 | O191: 2 | P191: 2 | Q191: D | R191: D | S191: 1 | T191: 1 | U191: 1 | V191: 1 | W191: 1 | X191: 1 | Y191: D | Z191: D | AA191: 3 | AB191: 3 | AC191: 3 | AD191: 3 | AE191: 3 | AF191: 3 | AG191: D
A192: Miguel Muñoz | C192: L2 | D192: L2 | E192: 3 | F192: 3 | G192: 3 | H192: 3 | I192: D | J192: D | K192: 2 | L192: 2 | M192: 2 | N192: 2 | O192: 2 | P192: 2 | Q192: D | R192: D | S192: 1 | T192: 1 | U192: 1 | V192: 1 | W192: 1 | X192: 1 | Y192: D | Z192: D | AA192: 3 | AB192: 3 | AC192: 3 | AD192: 3 | AE192: 3 | AF192: 3 | AG192: D
A193: Jorge Aguirre | C193: 3 | D193: 3 | E193: 3 | F193: 3 | G193: 3 | H193: 3 | I193: D | J193: D | K193: 2 | L193: 2 | M193: 2 | N193: 2 | O193: 2 | P193: L | Q193: D | R193: D | S193: V | T193: V | U193: V | V193: V | W193: V | X193: V | Y193: D | Z193: D | AA193: 3 | AB193: 3 | AC193: 3 | AD193: 3 | AE193: 3 | AF193: 3 | AG193: D

Sheet Pendientes 2018 (hidden)
B1: Asignacion | C1: Descripcion | O1: ISO | P1: 123456 | Q1: auditorias y hallasgos | S1: consultar auditorias y hallasgos | V1: Icono carpeta actualizar | Y1: Gestion (Completar Investigacion - Plan de Accion - Acciones Inmediatas)
C2: Generar plan mantencion externo generadores
C3: Generar plan mantencion damper ventiladores maquinas IS
C4: Generar plan mantencion estanques de agua tijeras
B5: No conformidad | C5: Generar plan calibracion de basculas + procedimiento (cada 2 semana) = Patricio Romero
C6: Generar archivo FODA
C7: Descripcion de los riesgos asociados a no cumplir las metas
C10: temas de repuestos criticos
C11: Riesgos electricos
C12: Comprar pantallas chicas y ver los tubos fluorescentes
C13: Informar de no colocar lanilla de vidrio en termocuplas, contamina canal
C14: Comprar selector equipo de medida horno
C15: Banco condensadores
C16: Identificar iluminacion tablero subterraneo
C17: Iluminacion silos (Soda H1 - 2 silos vidrios de retorno H2)
C18: Codigo cautin enzunchadora
C21: Elevador 8 cascada con vibrador
C22: cambios de enchufes H4 tratamientos en calientes
C23: Iluminacion blast cooler H2
C24: Cambio breaker tablero refrigeracion compresores
C25: Pesa sil 13
C26: Levantamiento luminarias de emergencia planta
C27: Cambio de cables de barredores IS-L13
C28: instalacion anillos de flujo tratamientos en caliente
C29: Etiquetas de paneles parison y molde de aluminio
C30: Extractores subterraneo
C31: Dejar una input estrategica para no cambiar parametros zechhetyy
C32: Estudiar breakers ssee 1600-1
C33: Pasword zechhety L21
C34: repuestos archa antonini - china
C35: sensores magneticos
C36: Agregar contactores by passe en ambos EP
C37: Portones
C38: Escalera telescopica
C39: Valvulas temporizadas para despiche de agua
C40: Flujo de agua IS-21
C41: Modutroles enfriamientos archas
C42: Modutroles SORG - PSR
C43: iluminacion residuos peligrosos
A46: Turno A | B46: Valeria Cabello | C46: Placa vibratoria salida archa 23
B47: Valeria Cabello | C47: Baliza nivel planta riles (1era prioridad) | M47: 2018-08-17
B48: Valeria Cabello | C48: Baliza por bomba de incendio (2era prioridad) | M48: 2018-08-17
B49: Valeria Cabello | C49: Falta baliza H2 entre operadores maquinas IS (3era prioridad) | M49: 2018-08-17
B50: Valeria Cabello | C50: Baliza de subterraneo a superficie (4ta prioridad) | M50: 2018-08-17
B51: Leonel Castillo | C51: Sensor de nivel Casa de mezcla
B52: Leonel Castillo | C52: Cambio tablero Stop Casa de mezcla + Levantamiento
B53: Ivan Escobar | C53: Levantamiento control casa mezcla
B54: Ivan Escobar | C54: Elevador 8 cascada vibrador
B55: Ivan Escobar | C55: Planos torno Carrillo
A59: Turno B | B59: Roberto Romero | C59: Iluminacion Cinta 47 y elevador h2
B60: Roberto Romero | C60: Cambiar tablero de casa de mezcla, lleva mas de un año en taller CANTAR CUMPLEAÑOS FELIZ
B61: Roberto Romero | C61: UPS H4
B62: Roberto Romero | C62: hornilla a gas
B63: Aldo Castillo | C63: Sujeccion petroleo lureye
B64: Samuel Sandoval | C64: Encargado informe iluminacion
B65: Samuel Sandoval | C65: Sensor patina cinta glasmax
B66: Aldo Castillo | C66: Instalar luces pilotos tablero general y remoto de cintas de retorno H2
A69: Turno C | B69: Ricardo Epul | C69: Luminarias taller repuestos maquinas IS, costado archa 22
B70: Omar Soto | C70: Linea 41 con control de velocidad
B71: Rodrigo Chavez | C71: Bandejas y baliza estanque H1
B72: Rodrigo Chavez | C72: Linea 22 con control de velocidad
B73: Rodrigo Chavez | C73: Mejorar estanque de lubricacion tijeras + baliza + sirena + canalizacion bandejas
A77: Turno D | B77: Julio Muñoz | C77: UPS SSEE 1600-1
B78: Julio Muñoz | C78: Traslado componentes menores
B79: Julio Muñoz | C79: Retirar equipo de medida SSEE 1000
B80: Miguel Muñoz | C80: Instalar seccionadores Linea 22, llevan mucho tiempo y aun no se habilitan
B81: Miguel Muñoz | C81: hornilla a gas
B85: Julio Muñoz | C85: Flujometro Horno

Sheet Hoja1 (hidden)
N4: =ContarPorColor((N4:N30),N4) -> 17
